Workbook

Sheet Примерное меню 5-11 классы
A1: Согласовано: | H1: Утверждаю:
A2: Директор "Базарно-Матакская гимназия им.Н.Даули" | H2: Председатель СПОСПК "Эдем"
A3: Алькеевского муниципального района РТ
A4: _________________ Яруллина Ф.Г. | H4: _____________Турнина А. А.
A6: Примерное двухнедельное меню рационов горячего питания для учащихся 5-11 классов в общеобразовательных учреждениях на 2021г.
A8: № рец. | B8: Приём пищи/ Наименование блюд | C8: Масса порций блюд, в гр. | D8: Пищевые вещества (г) | G8: Энергетическая ценность (ккал) | H8: Витамины (мг) | L8: Минеральные вещества (мг)
D9: Белки | E9: Жиры | F9: Углеводы | H9: А | I9: В1 | J9: Е | K9: С | L9: Ca | M9: P | N9: Mg | O9: Fe
B10: День 1 / Понедельник
B11: Завтрак
A12: №17/71 | B12: Салат из белокочанной капусты с огурцами (до 1 марта) /огурцы свежие порционно (после 1 марта) | C12: 100 | D12: 1.33 | E12: 0.167 | F12: 4.33 | G12: 24.1 | H12: 0.52 | I12: 0.06 | J12: 0.08 | K12: 10.5 | L12: 22.3 | M12: 58.8 | N12: 18.4 | O12: 0.88
A13: №304 | B13: Рис отварной | C13: 180 | D13: 4.44 | E13: 8.04 | F13: 44.67 | G13: 264 | H13: 0.04 | I13: 0.05 | J13: 0.03 | K13: 0 | L13: 9.3 | M13: 100 | N13: 32.5 | O13: 0.67
A14: №268 | B14: Котлета из говядины с соусом | C14: 90/20 | D14: 12.7 | E14: 15 | F14: 14.3 | G14: 243 | H14: 1.36 | I14: 0.12 | J14: 0.14 | K14: 2.36 | L14: 26 | M14: 175.9 | N14: 22.8 | O14: 0.78
B15: Хлеб пшеничный /ржано-пшеничный | C15: 50 | D15: 3 | E15: 0.4 | F15: 13.2 | G15: 68.4 | H15: 0 | I15: 0.028 | J15: 0.438 | K15: 0 | L15: 8.76 | M15: 32.22 | N15: 7.2 | O15: 0.7
A16: №376 | B16: Чай с сахаром | C16: 180/15 | D16: 0.021 | E16: 0.005 | F16: 14.975 | G16: 60 | H16: 0 | I16: 0 | J16: 0 | K16: 0 | L16: 0.45 | M16: 0 | N16: 0 | O16: 0.045
B17: Итого за завтрак: | D17: =SUM(D12:D16) -> 21.491 | E17: =SUM(E12:E16) -> 23.612 | F17: =SUM(F12:F16) -> 91.475 | G17: =SUM(G12:G16) -> 659.5 | H17: =SUM(H12:H16) -> 1.92 | I17: 0.258 | J17: 0.688 | K17: 12.86 | L17: 66.81 | M17: 366.92 | N17: 80.9 | O17: 3.075
B18: Обед
A19: №59 / 42 | B19: Салат из моркови с яблоком (до 1 марта) / Салат картофельный с солеными огурцами (после 1 марта) | C19: 100 | D19: 0.98 | E19: 9.3 | F19: 8.65 | G19: 122.22 | H19: 0 | I19: 0.048 | J19: 0.024 | K19: 15 | L19: 8.4 | M19: 15.6 | N19: 12 | O19: 0.58
A20: №82 | B20: Борщ с капустой и картофелем на мкб со сметаной | C20: 225/15/10 | D20: 7.5 | E20: 7.99 | F20: 23.09 | G20: 184 | H20: 0.27 | I20: 0.06 | J20: 0.28 | K20: 9.9 | L20: 44.87 | M20: 81.62 | N20: 26.53 | O20: 1.47
A21: №306 | B21: Пюре гороховое | C21: 180 | D21: 6.14 | E21: 6.98 | F21: 45.4 | G21: 268.98 | H21: 0.04 | I21: 0.054 | J21: 0.011 | K21: 0 | L21: 155.8 | M21: 136.6 | N21: 52.85 | O21: 0.42
A22: №301 | B22: Кнели куриные с соусом | C22: 90/20 | D22: 12.7 | E22: 8.5 | F22: 15.3 | G22: 188.5 | H22: 0.04 | I22: 0.1 | J22: 0.14 | K22: 5.87 | L22: 18.4 | M22: 50 | N22: 28.38 | O22: 1.48
B24: Хлеб пшеничный /ржано-пшеничный | C24: 60 | D24: 4.56 | E24: 0.48 | F24: 29.52 | G24: 142 | H24: 0 | I24: 0.028 | J24: 0.438 | K24: 0 | L24: 8.76 | M24: 32.22 | N24: 7.2 | O24: 0.7
A25: №348 | B25: Компот из сухофруктов | C25: 200 | D25: 0.54 | E25: 0 | F25: 17.58 | G25: 70.53 | H25: 0.18 | I25: 0.005 | J25: 0.02 | K25: 0.03 | L25: 2.56 | M25: 3.56 | N25: 1.74 | O25: 0.1
B26: Итого за обед: | D26: =SUM(D19:D25) -> 32.42 | E26: =SUM(E19:E25) -> 33.25 | F26: =SUM(F19:F25) -> 139.54 | G26: =SUM(G19:G25) -> 976.23 | H26: =SUM(H19:H25) -> 0.53 | I26: =I19+I20+I21+I22+I23+I24+I25 -> 0.295 | J26: 0.913 | K26: 30.8 | L26: 238.79 | M26: 319.6 | N26: 128.7 | O26: 4.75
B27: Итого за 1 день: | D27: =D26+D17 -> 53.911 | E27: =E26+E17 -> 56.862 | F27: 231.015 | G27: 1635.73 | H27: 2.45 | I27: 0.553 | J27: 1.601 | K27: 43.66 | L27: 305.6 | M27: 686.52 | N27: 209.6 | O27: 7.825
B29: День 2 / Вторник
B30: Завтрак
A31: №52 | B31: Салат из отварной свеклы | C31: 100 | D31: 1.45 | E31: 6.75 | F31: 15.35 | G31: 127.8 | H31: 0 | I31: 0.025 | J31: 0.033 | K31: 8 | L31: 27.92 | M31: 36.3 | N31: 17.5 | O31: 1.05
A33: ТТК №50 | B33: Жаркое из птицы | C33: 230 | D33: 17.5 | E33: 16.9 | F33: 36.6 | G33: 368.5 | H33: 1.35 | I33: 0.215 | J33: 0 | K33: 28.98 | L33: 48.1 | M33: 90.97 | N33: 52.58 | O33: 2.42
B35: Хлеб пшеничный /ржано-пшеничный | C35: 60 | D35: 4.56 | E35: 0.48 | F35: 29.52 | G35: 142 | H35: 0 | I35: 0.028 | J35: 0.438 | K35: 0 | L35: 8.76 | M35: 32.22 | N35: 7.2 | O35: 0.7
A36: №376 | B36: Чай с сахаром и лимоном | C36: 180/15/5 | D36: 0.045 | E36: 0.005 | F36: 15.12 | G36: 60.7 | H36: 20 | I36: 0.044 | J36: 0.12 | K36: 1.3 | L36: 125 | M36: 116 | N36: 21 | O36: 1.04
B37: Итого за завтрак: | D37: =SUM(D31:D36) -> 23.555 | E37: =SUM(E31:E36) -> 24.135 | F37: =SUM(F31:F36) -> 96.59 | G37: =SUM(G31:G36) -> 699 | H37: =SUM(H31:H36) -> 21.35 | I37: =SUM(I31:I36) -> 0.312 | J37: 0.591 | K37: =K31+K32+K33+K34+K35+K36 -> 38.28 | L37: 209.78 | M37: 275.49 | N37: 98.28 | O37: 5.21
B38: Обед
A39: №15 | B39: Сыр | C39: 15 | D39: 3.9 | E39: 3.97 | F39: 0.52 | G39: 54.75 | H39: 0.6 | I39: 0 | J39: 0 | K39: 0.04 | L39: 305 | M39: 81 | N39: 0.75 | O39: 0.14
A40: №88 | B40: Щи из свежей капусты с картофелем на мкб со сметаной | C40: 225/15/10 | D40: 8 | E40: 11.43 | F40: 18.2 | G40: 207.67 | H40: 0.15 | I40: 0.45 | J40: 0.6 | K40: 10.25 | L40: 45.25 | M40: 78.74 | N40: 24.45 | O40: 1.15
A41: №312 | B41: Картофельное пюре | C41: 180 | D41: 4.8 | E41: 8.52 | F41: 48.67 | G41: 290.56 | H41: 0.04 | I41: 0.05 | J41: 0.03 | K41: 0 | L41: 9.3 | M41: 100 | N41: 32.5 | O41: 0.67
A42: №234 | B42: Биточки рыбные с соусом | C42: 90/30 | D42: 8.55 | E42: 7.03 | F42: 18.35 | G42: 182.76 | H42: 0.04 | I42: 0.11 | J42: 0.132 | K42: 2.55 | L42: 52.95 | M42: 239.39 | N42: 56.27 | O42: 0.89
B44: Хлеб пшеничный /ржано-пшеничный | C44: 60 | D44: 4.56 | E44: 0.48 | F44: 29.52 | G44: 142 | H44: 0 | I44: 0.028 | J44: 0.438 | K44: 0 | L44: 8.76 | M44: 32.22 | N44: 7.2 | O44: 0.7
A45: №342 | B45: Компот из яблок | C45: 200 | D45: 0.2 | E45: 0.005 | F45: 15.7 | G45: 65.3 | H45: 0 | I45: 0 | J45: 0 | K45: 0 | L45: 0.45 | M45: 0 | N45: 0 | O45: 0.045
B46: Итого за обед: | D46: =SUM(D39:D45) -> 30.01 | E46: =SUM(E39:E45) -> 31.435 | F46: =SUM(F39:F45) -> 130.96 | G46: =SUM(G39:G45) -> 943.04 | H46: =SUM(H40:H45) -> 0.23 | I46: =I39+I40+I41+I42+I43+I44+I45 -> 0.638 | J46: 1.2 | K46: 12.84 | L46: 421.71 | M46: 531.35 | N46: 121.17 | O46: 3.595
B47: Итого за 1 день: | D47: =D37+D46 -> 53.565 | E47: =E37+E46 -> 55.57 | F47: 227.55 | G47: 1642.04 | H47: 21.58 | I47: 0.95 | J47: 1.791 | K47: 51.12 | L47: 631.49 | M47: 806.84 | N47: 219.45 | O47: 8.805
B49: День 3 / Среда
B50: Завтрак
A51: №338 | B51: Фрукт | C51: 100 | D51: 0.4 | E51: 0.4 | F51: 7.35 | G51: 46.6 | H51: 0 | I51: 0.03 | J51: 0.2 | K51: 10 | L51: 16 | M51: 11 | N51: 9 | O51: 2.2
A52: №203 | B52: Макароны отварные со сливочным маслом | C52: 180 | D52: 6.84 | E52: 8.95 | F52: 41.2 | G52: 244.8 | H52: 0.04 | I52: 0.011 | J52: 0.03 | K52: 0 | L52: 14.7 | M52: 59.5 | N52: 10.45 | O52: 1.06
A53: №294 | B53: Котлета из птицы с соусом | C53: 90/20 | D53: 11.4 | E53: 12.7 | F53: 6.59 | G53: 186.26 | H53: 0.012 | I53: 0.01 | J53: 0.13 | K53: 1.62 | L53: 19.87 | M53: 151 | N53: 18.85 | O53: 2.62
B55: Хлеб пшеничный /ржано-пшеничный | C55: 60 | D55: 4.56 | E55: 0.48 | F55: 29.52 | G55: 142 | H55: 0 | I55: 0.028 | J55: 0.438 | K55: 0 | L55: 8.76 | M55: 32.22 | N55: 7.2 | O55: 0.7
A56: №685/2004 | B56: Чай с сахаром и яблоками | C56: 175/15/10 | D56: 0.2 | E56: 0.5 | F56: 15.7 | G56: 65.3 | H56: 0 | I56: 0 | J56: 0 | K56: 0 | L56: 0.45 | M56: 0 | N56: 0 | O56: 0.045
B57: Итого за завтрак: | D57: =SUM(D51:D56) -> 23.4 | E57: 23.03 | F57: 100.36 | G57: 684.96 | H57: 0.052 | I57: 0.079 | J57: 0.798 | K57: 11.62 | L57: 59.78 | M57: 253.72 | N57: 45.5 | O57: 6.625
B58: Обед
A59: №45 / 67 | B59: Салат из белокачанной капусты (до 1 марта)/ Винегрет овощной(после 1 марта) | C59: 100 | D59: 1.55 | E59: 5.5 | F59: 17.11 | G59: 124.14 | H59: 0 | I59: 0.018 | J59: 1.391 | K59: 21.603 | L59: 25.537 | M59: 18.26 | N59: 9.92 | O59: 0.344
A60: №96 | B60: Рассольник Ленинградский на мкб со сметаной | C60: 225/15/10 | D60: 7.02 | E60: 8.2 | F60: 18.95 | G60: 191.3 | H60: 0.18 | I60: 0.12 | J60: 0.1 | K60: 10.68 | L60: 28.84 | M60: 105.4 | N60: 29.7 | O60: 1.38
A61: №265 | B61: Плов с говядиной (крупа гречневая) | C61: 230 | D61: 19.32 | E61: 18.1 | F61: 46.36 | G61: 425.62 | H61: 0 | I61: 0.34 | J61: 0.24 | K61: 1.1 | L61: 26.6 | M61: 336 | N61: 159 | O61: 0.65
B62: Хлеб пшеничный /ржано-пшеничный | C62: 60 | D62: 4.56 | E62: 0.48 | F62: 29.52 | G62: 142 | H62: 0 | I62: 0.028 | J62: 0.438 | K62: 0 | L62: 8.76 | M62: 32.22 | N62: 7.2 | O62: 0.7
A63: №377 | B63: Чай с сахаром и курагой | C63: 175/15/7 | D63: 0.2 | E63: 1.5 | F63: 15.7 | G63: 65.3 | H63: 0 | I63: 0 | J63: 0 | K63: 0 | L63: 0.45 | M63: 0 | N63: 0 | O63: 0.045
B64: Итого за обед: | D64: =SUM(D59:D63) -> 32.65 | E64: 33.78 | F64: 127.64 | G64: 948.36 | H64: 0.18 | I64: 0.506 | J64: 2.169 | K64: 33.383 | L64: 90.187 | M64: 491.88 | N64: 205.82 | O64: 3.119
B65: Итого за 1 день: | D65: =D57+D64 -> 56.05 | E65: 56.81 | F65: 228 | G65: 1633.32 | H65: 0.232 | I65: 0.585 | J65: 2.967 | K65: 45.003 | L65: 149.967 | M65: 745.6 | N65: 251.32 | O65: 9.744
B67: День 4 / Черверг
B68: Завтрак
A69: №338 | B69: Фрукт | C69: 100 | D69: 1.69 | E69: 2.1 | F69: 13 | G69: 77.7 | H69: 0 | I69: 0.03 | J69: 0.2 | K69: 10 | L69: 16 | M69: 11 | N69: 9 | O69: 2.2
A70: №173 | B70: Каша молочная геркулесовая со сливочным маслом | C70: 200/5/10 | D70: 7.3 | E70: 10.39 | F70: 16.43 | G70: 188.4 | H70: 0.05 | I70: 0.23 | J70: 0.24 | K70: 1.3 | L70: 331.5 | M70: 327.1 | N70: 54.5 | O70: 2.11
A71: №406 | B71: Перемяч печеный с мясом | C71: 60 | D71: 8.11 | E71: 8.95 | F71: 24.53 | G71: 192 | H71: 0.003 | I71: 0.07 | J71: 0.057 | K71: 0.678 | L71: 0 | M71: 76.62 | N71: 11.58 | O71: 1.01
B73: Хлеб пшеничный /ржано-пшеничный | C73: 60 | D73: 4.56 | E73: 0.48 | F73: 29.52 | G73: 142 | H73: 0 | I73: 0.028 | J73: 0.438 | K73: 0 | L73: 8.76 | M73: 32.22 | N73: 7.2 | O73: 0.7
A74: №376 | B74: Чай с сахаром | C74: 180/15 | D74: 0.021 | E74: 0.005 | F74: 14.975 | G74: 60 | H74: 0 | I74: 0 | J74: 0 | K74: 0 | L74: 0.45 | M74: 0 | N74: 0 | O74: 0.045
B75: Итого за завтрак: | D75: =SUM(D69:D74) -> 21.681 | E75: =SUM(E69:E74) -> 21.925 | F75: =SUM(F69:F74) -> 98.455 | G75: =SUM(G69:G74) -> 660.1 | H75: =H69+H70+H71+H72+H73+H74 -> 0.053 | I75: 0.358 | J75: 0.935 | K75: 11.978 | L75: 356.71 | M75: 446.94 | N75: 82.28 | O75: 6.065
B76: Обед
A77: №66/ ТТК №27 | B77: Салат из моркови (до 1 марта)/ салат из припущенной моркови с яблоками (после 1 марта) | C77: 100 | D77: 1.2 | E77: 10.06 | F77: 14 | G77: 151.7 | H77: 0 | I77: 0.03 | J77: 0.2 | K77: 10 | L77: 16 | M77: 11 | N77: 9 | O77: 2.2
A78: №112 | B78: Суп с макаронными изделиями на мкб со сметаной | C78: 225/15/10 | D78: 8.36 | E78: 6.33 | F78: 27.44 | G78: 200 | H78: 0.01 | I78: 0.13 | J78: 0.09 | K78: 12.77 | L78: 20.65 | M78: 60.4 | N78: 25.67 | O78: 1.35
A79: № 289 | B79: Рагу из птицы | C79: 220 | D79: 15.56 | E79: 16.42 | F79: 38.9 | G79: 365.6 | H79: 1.98 | I79: 0.165 | J79: 0 | K79: 39.6 | L79: 56.1 | M79: 68.86 | N79: 44.44 | O79: 2.09
B81: Хлеб пшеничный /ржано-пшеничный | C81: 60 | D81: 4.56 | E81: 0.48 | F81: 29.52 | G81: 142 | H81: 0 | I81: 0.028 | J81: 0.438 | K81: 0 | L81: 8.76 | M81: 32.22 | N81: 7.2 | O81: 0.7
A82: №348 | B82: Компот из сухофруктов | C82: 200 | D82: 0.54 | E82: 0 | F82: 17.58 | G82: 70.53 | H82: 0.18 | I82: 0.005 | J82: 0.02 | K82: 0.03 | L82: 2.56 | M82: 3.56 | N82: 1.74 | O82: 0.1
B83: Итого за обед: | D83: =SUM(D77:D82) -> 30.22 | E83: 33.29 | F83: 127.44 | G83: 929.83 | H83: 2.17 | I83: 0.358 | J83: 0.748 | K83: 62.4 | L83: 104.07 | M83: 176.04 | N83: 88.05 | O83: 6.44
B84: Итого за 1 день: | D84: =D75+D83 -> 51.901 | E84: =E75+E83 -> 55.215 | F84: 225.895 | G84: 1589.93 | H84: 2.223 | I84: 0.716 | J84: 1.683 | K84: 74.378 | L84: 460.78 | M84: 622.98 | N84: 170.33 | O84: 12.505
B86: День 5 / Пятница
B87: Завтрак
A88: №42 | B88: Салат картофельный с солеными огурцами | C88: 100 | D88: 1.6 | E88: 8.99 | F88: 8.5 | G88: 121.3 | H88: 1.02 | I88: 0.067 | J88: 0.7 | K88: 10.5 | L88: 22.3 | M88: 58.5 | N88: 18.4 | O88: 0.88
A90: №291 | B90: Плов из птицы | C90: 220 | D90: 16.2 | E90: 12.9 | F90: 42.8 | G90: 352.1 | H90: 1.7 | I90: 0.121 | J90: 0 | K90: 6.27 | L90: 24.39 | M90: 87.45 | N90: 45.21 | O90: 1.67
B92: Хлеб пшеничный /ржано-пшеничный | C92: 50 | D92: 3.8 | E92: 0.5 | F92: 24.6 | G92: 117.2 | H92: 0 | I92: 0.028 | J92: 0.438 | K92: 0 | L92: 8.76 | M92: 32.22 | N92: 7.2 | O92: 0.7
A93: №376 | B93: Чай с сахаром и лимоном | C93: 180/15/5 | D93: 0.045 | E93: 0.005 | F93: 15.12 | G93: 60.7 | H93: 20 | I93: 0.044 | J93: 0.12 | K93: 1.3 | L93: 125 | M93: 116 | N93: 21 | O93: 1.04
B94: Итого за завтрак: | D94: =SUM(D88:D93) -> 21.645 | E94: 22.395 | F94: 91.02 | G94: 651.3 | H94: 22.72 | I94: 0.26 | J94: 1.258 | K94: 18.07 | L94: 180.45 | M94: 294.17 | N94: 91.81 | O94: 4.29
B95: Обед
A96: №49 / 70 | B96: Салат "Витаминный" (до 1 марта) / Огурцы соленые (после 1 марта) | C96: 100 | D96: 1.12 | E96: 4.78 | F96: 10.6 | G96: 89.9 | H96: 0 | I96: 0.02 | J96: 0.02 | K96: 24.75 | L96: 34.9 | M96: 29.35 | N96: 18.3 | O96: 0.96
A97: №102 | B97: Суп картофельный с бобовыми(гороховый) на мкб | C97: 235/15 | D97: 7.99 | E97: 4.2 | F97: 13.69 | G97: 124.52 | H97: 0 | I97: 0.19 | J97: 0.09 | K97: 1.15 | L97: 25.23 | M97: 95.62 | N97: 30.56 | O97: 1.84
A98: №203 | B98: Макароны отварные со сливочным маслом | C98: 180 | D98: 6.84 | E98: 8.95 | F98: 41.2 | G98: 244.8 | H98: 0.04 | I98: 0.011 | J98: 0.03 | K98: 0 | L98: 14.7 | M98: 59.5 | N98: 10.45 | O98: 1.06
A99: №268 | B99: Котлета из говядины с соусом | C99: 90/20 | D99: 12.5 | E99: 15 | F99: 14.3 | G99: 243 | H99: 1.36 | I99: 0.12 | J99: 0.14 | K99: 2.36 | L99: 26 | M99: 175.9 | N99: 22.8 | O99: 0.78
B101: Хлеб пшеничный /ржано-пшеничный | C101: 60 | D101: 4.56 | E101: 0.48 | F101: 29.52 | G101: 142 | H101: 0 | I101: 0.028 | J101: 0.438 | K101: 0 | L101: 8.76 | M101: 32.22 | N101: 7.2 | O101: 0.7
A102: №359 | B102: Кисель | C102: 200 | D102: 0 | E102: 0 | F102: 20.9 | G102: 83.9 | H102: 0 | I102: 0 | J102: 0 | K102: 0 | L102: 0.3 | M102: 0 | N102: 0 | O102: 0.45
B103: Итого за обед: | D103: =SUM(D96:D102) -> 33.01 | E103: 33.41 | F103: 130.21 | G103: 928.12 | H103: 1.4 | I103: 0.369 | J103: 0.718 | K103: 28.26 | L103: 109.89 | M103: 392.59 | N103: 89.31 | O103: 5.79
B104: Итого за 1 день: | D104: =D103+D94 -> 54.655 | E104: =E103+E94 -> 55.805 | F104: 221.23 | G104: 1579.42 | H104: 24.12 | I104: 0.629 | J104: 1.976 | K104: 46.33 | L104: 290.34 | M104: 686.76 | N104: 181.12 | O104: 10.08
B106: День 6 / Суббота
B107: Завтрак
A108: № 20 | B108: Огурцы свежие с маслом | C108: 100 | D108: 3.57 | E108: 8.48 | F108: 4.11 | G108: 107.04 | H108: 1 | I108: 0 | J108: 0 | K108: 0.06 | L108: 508 | M108: 135 | N108: 1.25 | O108: 0.23
A109: №312 | B109: Картофельное пюре | C109: 180 | D109: 4.8 | E109: 8.52 | F109: 48.67 | G109: 290.56 | H109: 0.04 | I109: 0.05 | J109: 0.03 | K109: 0 | L109: 9.3 | M109: 100 | N109: 32.5 | O109: 0.67
A110: №229 | B110: Рыба припущенная с овощами | C110: 90/30 | D110: 9.33 | E110: 6.49 | F110: 10.2 | G110: 136.53 | H110: 0.04 | I110: 0.11 | J110: 0.12 | K110: 2.55 | L110: 52.95 | M110: 239.39 | N110: 56.27 | O110: 0.89
B112: Хлеб пшеничный /ржано-пшеничный | C112: 60 | D112: 3.6 | E112: 0.12 | F112: 19.7 | G112: 94.28 | H112: 0 | I112: 0.028 | J112: 0.438 | K112: 0 | L112: 8.76 | M112: 32.22 | N112: 7.2 | O112: 0.7
A114: №685/2004 | B114: Чай с сахаром и яблоками | C114: 175/15/10 | D114: 0.2 | E114: 0.5 | F114: 15.7 | G114: 65.3 | H114: 0 | I114: 0 | J114: 0 | K114: 0 | L114: 0.45 | M114: 0 | N114: 0 | O114: 0.045
B115: Итого за завтрак: | D115: =SUM(D108:D114) -> 21.5 | E115: 24.11 | F115: 98.38 | G115: 693.71 | H115: 1.08 | I115: 0.188 | J115: 0.588 | K115: 2.61 | L115: 579.46 | M115: 506.61 | N115: =SUM(N108:N114) -> 97.22 | O115: 2.535
B116: Обед
A117: №52 | B117: Салат из отварной свеклы | C117: 100 | D117: 1.45 | E117: 6.75 | F117: 8.8 | G117: 101.75 | H117: 0 | I117: 0.02 | J117: 0.03 | K117: 10.18 | L117: 24.38 | M117: 26.75 | N117: 16.58 | O117: 0
A118: №108 | B118: Суп картофельный с клецками на мкб со сметаной | C118: 225/15/10 | D118: 6.59 | E118: 7.62 | F118: 24.45 | G118: 232 | H118: 0.02 | I118: 0.16 | J118: 0.12 | K118: 15.1 | L118: 25.66 | M118: 87.7 | N118: 28.38 | O118: 1.44
A119: №304 | B119: Рис отварной | C119: 180 | D119: 4.44 | E119: 8.04 | F119: 44.67 | G119: 264 | H119: 0.04 | I119: 0.05 | J119: 0.03 | K119: 0 | L119: 9.3 | M119: 100 | N119: 32.5 | O119: 0.67
A120: №288 | B120: Курица тушеная с овощами | C120: 80/30 | D120: 14 | E120: 8.65 | F120: 17.6 | G120: 182 | H120: 0.646 | I120: 0.111 | J120: 0 | K120: 7.46 | L120: 19 | M120: 6.14 | N120: 24.12 | O120: 1.57
B122: Хлеб пшеничный /ржано-пшеничный | C122: 60 | D122: 4.56 | E122: 0.48 | F122: 29.52 | G122: 142 | H122: 0 | I122: 0.028 | J122: 0.438 | K122: 0 | L122: 8.76 | M122: 32.22 | N122: 7.2 | O122: 0.7
A123: №342 | B123: Компот из свежих плодов | C123: 200 | D123: 0.17 | E123: 0.17 | F123: 19.18 | G123: 76.8 | H123: 0 | I123: 0.01 | J123: 0.01 | K123: 5.59 | L123: 7.1 | M123: 4.73 | N123: 8.17 | O123: 0
B124: Итого за обед: | D124: =SUM(D117:D123) -> 31.21 | E124: 31.71 | F124: 140.1 | G124: 998.55 | H124: 0.706 | I124: 0.379 | J124: 0.628 | K124: 38.33 | L124: 94.2 | M124: 257.54 | N124: =SUM(N117:N123) -> 116.95 | O124: 4.38
B125: Итого за 1 день: | D125: =D124+D115 -> 52.71 | E125: =E124+E115 -> 55.82 | F125: 238.48 | G125: 1692.26 | H125: 1.786 | I125: =SUM(I117:I123) -> 0.379 | J125: 1.216 | K125: 40.94 | L125: 673.66 | M125: 764.15 | N125: 214.17 | O125: 6.915
B127: День 7 / Понедельник
B128: Завтрак
A129: №15 | B129: Сыр | C129: 15 | D129: 3.9 | E129: 3.97 | F129: 0.52 | G129: 54.75 | H129: 0.6 | I129: 0 | J129: 0 | K129: 0.04 | L129: 305 | M129: 81 | N129: 0.75 | O129: 0.14
A131: №173 | B131: Каша молочная ячневая со сливочным маслом | C131: 220/5/12 | D131: 8.6 | E131: 9.7 | F131: 28.36 | G131: 235.14 | H131: 0.05 | I131: 0.23 | J131: 0.24 | K131: 1.3 | L131: 331.5 | M131: 327.1 | N131: 54.5 | O131: 2.11
A132: №418 | B132: Пирожок с повидлом | C132: 60 | D132: 5.2 | E132: 7.9 | F132: 20.31 | G132: 173.14 | H132: 0.01 | I132: 0.06 | J132: 0.04 | K132: 0.25 | L132: 22.01 | M132: 41.55 | N132: 8.55 | O132: 0.75
B134: Хлеб пшеничный /ржано-пшеничный | C134: 60 | D134: 4.56 | E134: 0.48 | F134: 29.52 | G134: 142 | H134: 0 | I134: 0.028 | J134: 0.438 | K134: 0 | L134: 8.76 | M134: 32.22 | N134: 7.2 | O134: 0.7
A135: №376 | B135: Чай с сахаром | C135: 180/15 | D135: 0.021 | E135: 0.005 | F135: 14.975 | G135: 60 | H135: 0 | I135: 0 | J135: 0 | K135: 0 | L135: 0.45 | M135: 0 | N135: 0 | O135: 0.045
B136: Итого за завтрак: | D136: =SUM(D129:D135) -> 22.281 | E136: 22.055 | F136: 93.685 | G136: 665.03 | H136: 0.66 | I136: 0.318 | J136: 0.718 | K136: 1.59 | L136: =SUM(L129:L135) -> 667.72 | M136: 481.87 | N136: 71 | O136: 3.745
B137: Обед
A138: №45 /67 | B138: Салат из белокочанной капусты (до 1 марта)/Салат из отварной свеклы с зеленым горошком (после 1 марта) | C138: 100 | D138: 1.67 | E138: 9.45 | F138: 9.33 | G138: 129 | H138: 0 | I138: 0.024 | J138: 1.854 | K138: 28.8 | L138: 34.05 | M138: 24.35 | N138: 13.22 | O138: 0.458
A139: №101 | B139: Суп картофельный с крупой (пшённый) на мкб со сметаной | C139: 225/15/10 | D139: 9.38 | E139: 9.5 | F139: 22.79 | G139: 223 | H139: 0 | I139: 0.15 | J139: 0.44 | K139: 10.5 | L139: 109.6 | M139: 112.8 | N139: 45.74 | O139: 1.9
A140: №259 | B140: Жаркое по-домашнему (из говядины) | C140: 220 | D140: 14.5 | E140: 14.3 | F140: 51.6 | G140: 393.1 | H140: 0.15 | I140: 0.18 | J140: 0.2 | K140: 21.67 | L140: 31.33 | M140: 225 | N140: 49.59 | O140: 1.92
B142: Хлеб пшеничный /ржано-пшеничный | C142: 60 | D142: 4.56 | E142: 0.48 | F142: 29.52 | G142: 142 | H142: 0 | I142: 0.028 | J142: 0.438 | K142: 0 | L142: 8.76 | M142: 32.22 | N142: 7.2 | O142: 0.7
A143: №348 | B143: Компот из сухофруктов | C143: 200 | D143: 0.54 | E143: 0 | F143: 17.58 | G143: 70.53 | H143: 0.18 | I143: 0.005 | J143: 0.02 | K143: 0.03 | L143: 2.56 | M143: 3.56 | N143: 1.74 | O143: 0.1
B144: Итого за обед: | D144: =SUM(D138:D143) -> 30.65 | E144: 33.73 | F144: 130.82 | G144: 957.63 | H144: 0.33 | I144: 0.387 | J144: 2.952 | K144: 61 | L144: 186.3 | M144: 397.93 | N144: =N138+N139+N140+N141+N142+N143 -> 117.49 | O144: 5.078
B145: Итого за 1 день: | D145: =D136+D144 -> 52.931 | E145: =E136+E144 -> 55.785 | F145: 224.505 | G145: 1622.66 | H145: 0.99 | I145: 0.705 | J145: 3.67 | K145: 62.59 | L145: 854.02 | M145: 879.8 | N145: 188.49 | O145: 8.823
B147: День 8 / Вторник
B148: Завтрак
A149: №338 | B149: Фрукт | C149: 100 | D149: 0.4 | E149: 0.4 | F149: 7.35 | G149: 46.6 | H149: 0 | I149: 0.03 | J149: 0.2 | K149: 10 | L149: 16 | M149: 11 | N149: 9 | O149: 2.2
A150: №287 | B150: Плов из говядины | C150: 230 | D150: 18.05 | E150: 21.7 | F150: 40.8 | G150: 430.9 | H150: 0 | I150: 0.1 | J150: 0.15 | K150: 56 | L150: 76.24 | M150: 189 | N150: 51.4 | O150: 2.59
B152: Хлеб пшеничный /ржано-пшеничный | C152: 60 | D152: 4.56 | E152: 0.48 | F152: 29.52 | G152: 142 | H152: 0 | I152: 0.028 | J152: 0.438 | K152: 0 | L152: 8.76 | M152: 32.22 | N152: 7.2 | O152: 0.7
A154: №376 | B154: Чай с сахаром и лимоном | C154: 180/15/5 | D154: 0.045 | E154: 0.005 | F154: 15.12 | G154: 60.7 | H154: 20 | I154: 0.044 | J154: 0.12 | K154: 1.3 | L154: 125 | M154: 116 | N154: 21 | O154: 1.04
B155: Итого за завтрак: | D155: =SUM(D149:D154) -> 23.055 | E155: 22.585 | F155: 92.79 | G155: 680.2 | H155: 20 | I155: 0.202 | J155: 0.908 | K155: 67.3 | L155: 226 | M155: 348.22 | N155: =N149+N150+N151+N152+N153+N154 -> 88.6 | O155: 6.53
B156: Обед
A157: № 59 / 71 | B157: Салат из моркови (до 1 марта) /Салат из припущенной моркови с изюмом (после 1 марта) | C157: 100 | D157: 1.21 | E157: 7.8 | F157: 14 | G157: 131.04 | H157: 0 | I157: 0.05 | J157: 0.07 | K157: 4.8 | L157: 49.3 | M157: 53.1 | N157: 36.7 | O157: 0.68
A158: №82 | B158: Борщ с капустой и картофелем на мкб со сметаной | C158: 225/15/10 | D158: 7.5 | E158: 7.99 | F158: 23.09 | G158: 184 | H158: 0.27 | I158: 0.06 | J158: 0.28 | K158: 9.9 | L158: 44.87 | M158: 81.62 | N158: 26.53 | O158: 1.47
A159: №203 | B159: Макароны отварные со сливочным маслом | C159: 180 | D159: 6.84 | E159: 8.95 | F159: 41.2 | G159: 244.8 | H159: 0.04 | I159: 0.011 | J159: 0.03 | K159: 0 | L159: 14.7 | M159: 59.5 | N159: 10.45 | O159: 1.06
A160: №301 | B160: Кнели куриные с соусом | C160: 90/20 | D160: 12.7 | E160: 8.5 | F160: 15.3 | G160: 188.5 | H160: 0.04 | I160: 0.1 | J160: 0.14 | K160: 5.87 | L160: 18.4 | M160: 50 | N160: 28.38 | O160: 1.48
B162: Хлеб пшеничный /ржано-пшеничный | C162: 60 | D162: 4.46 | E162: 0.48 | F162: 22.52 | G162: 113.6 | H162: 0 | I162: 0.028 | J162: 0.438 | K162: 0 | L162: 8.76 | M162: 32.22 | N162: 7.2 | O162: 0.7
A163: №359 | B163: Кисель | C163: 200 | D163: 0 | E163: 0 | F163: 20.9 | G163: 83.9 | H163: 0 | I163: 0 | J163: 0 | K163: 0 | L163: 0.3 | M163: 0 | N163: 0 | O163: 0.45
B164: Итого за обед: | D164: =SUM(D157:D163) -> 32.71 | E164: 33.72 | F164: 137.01 | G164: 945.84 | H164: 0.35 | I164: 0.249 | J164: 0.958 | K164: 20.57 | L164: 136.33 | M164: =M157+M158+M159+M160+M161+M162+M163 -> 276.44 | N164: 109.26 | O164: 5.84
B165: Итого за 1 день: | D165: =D155+D164 -> 55.765 | E165: =E155+E164 -> 56.305 | F165: 229.8 | G165: 1626.04 | H165: 20.35 | I165: 0.451 | J165: 1.866 | K165: 87.87 | L165: 362.33 | M165: 624.66 | N165: 197.86 | O165: 12.37
B167: День 9 / Среда
B168: Завтрак
A169: №49/ ТТК №27 | B169: Салат "Витаминный" (до 1 марта)/ Огурцы свежие порционно (после 1 марта) | C169: 100 | D169: 1.17 | E169: 5.1 | F169: 11.1 | G169: 95 | H169: 0 | I169: 0.03 | J169: 0.028 | K169: 24.9 | L169: 33.3 | M169: 24.55 | N169: 17.28 | O169: 0.938
A170: №302 | B170: Каша гречневая рассыпчатая | C170: 180 | D170: 8.23 | E170: 9.09 | F170: 39.6 | G170: 204 | H170: 0.04 | I170: 0.28 | J170: 0.13 | K170: 0 | L170: 15.4 | M170: 196 | N170: 118 | O170: 2.37
A171: №294 | B171: Котлета куриная с соусом | C171: 90/20 | D171: 10.99 | E171: 8.8 | F171: 10.86 | G171: 201 | H171: 0.012 | I171: 0.01 | J171: 0.13 | K171: 1.62 | L171: 19.87 | M171: 151 | N171: 18.85 | O171: 2.62
B173: Хлеб пшеничный /ржано-пшеничный | C173: 40 | D173: 2.7 | E173: 0.5 | F173: 16.5 | G173: 95 | H173: 0 | I173: 0.028 | J173: 0.438 | K173: 0 | L173: 8.76 | M173: 32.22 | N173: 7.2 | O173: 0.7
A174: №685/2004 | B174: Чай с сахаром и яблоками | C174: 175/15/10 | D174: 0.2 | E174: 0.5 | F174: 15.7 | G174: 65.3 | H174: 0 | I174: 0 | J174: 0 | K174: 0 | L174: 0.45 | M174: 0 | N174: 0 | O174: 0.045
B175: Итого за завтрак: | D175: =SUM(D169:D174) -> 23.29 | E175: 23.99 | F175: 93.76 | G175: 660.3 | H175: 0.052 | I175: 0.348 | J175: 0.726 | K175: =K169+K170+K171+K172+K173+K174 -> 26.52 | L175: 77.78 | M175: 403.77 | N175: 161.33 | O175: 6.673
B176: Обед
A177: №52 | B177: Салат из отварной свеклы | C177: 100 | D177: 1.45 | E177: 6.75 | F177: 8.8 | G177: 101.8 | H177: 0 | I177: 0.01 | J177: 0.015 | K177: 5.09 | L177: 14.63 | M177: 16.05 | N177: 9.95 | O177: 0
A178: №108 | B178: Суп картофельный с клецками на мкб со сметаной | C178: 225/15/10 | D178: 6.59 | E178: 7.62 | F178: 24.45 | G178: 232 | H178: 0.02 | I178: 0.16 | J178: 0.12 | K178: 15.1 | L178: 25.66 | M178: 87.7 | N178: 28.38 | O178: 1.44
A179: №263 | B179: Рагу овощное с говядиной | C179: 220 | D179: 17.8 | E179: 16.4 | F179: 48.7 | G179: 413.6 | H179: 0.185 | I179: 0.13 | J179: 0.2 | K179: 23.29 | L179: 50.5 | M179: 206 | N179: 45.4 | O179: 3.05
B181: Хлеб пшеничный /ржано-пшеничный | C181: 60 | D181: 4.56 | E181: 0.48 | F181: 29.52 | G181: 142 | H181: 0 | I181: 0.028 | J181: 0.438 | K181: 0 | L181: 8.76 | M181: 32.22 | N181: 7.2 | O181: 0.7
A182: №342 | B182: Компот из свежих плодов | C182: 200 | D182: 0.17 | E182: 0.17 | F182: 19.18 | G182: 76.8 | H182: 0 | I182: 0.01 | J182: 0.01 | K182: 5.59 | L182: 7.1 | M182: 4.73 | N182: 8.17 | O182: 0
B183: Итого за обед: | D183: =SUM(D177:D182) -> 30.57 | E183: 31.42 | F183: 130.65 | G183: 966.2 | H183: 0.205 | I183: 0.338 | J183: 0.783 | K183: 49.07 | L183: 106.65 | M183: =M177+M178+M179+M180+M181+M182 -> 346.7 | N183: 99.1 | O183: 5.19
B184: Итого за 1 день: | D184: =D183+D175 -> 53.86 | E184: =E183+E175 -> 55.41 | F184: 224.41 | G184: 1626.5 | H184: 0.257 | I184: 0.686 | J184: 1.509 | K184: 75.59 | L184: 184.43 | M184: 750.47 | N184: 260.43 | O184: 11.863
B186: День 10 / Четверг
B187: Завтрак
A188: №338 | B188: Фрукт | C188: 100 | D188: 0.4 | E188: 0.4 | F188: 7.35 | G188: 46.6 | H188: 0 | I188: 0.03 | J188: 0.2 | K188: 10 | L188: 16 | M188: 11 | N188: 9 | O188: 2.2
A189: №142 | B189: Картофель тушеный | C189: 180 | D189: 7.69 | E189: 7.33 | F189: 30.1 | G189: 217.13 | H189: 2.16 | I189: 0.23 | J189: 0 | K189: 38.5 | L189: 33.91 | M189: 125.2 | N189: 50.6 | O189: 1.89
A192: № 290 | B192: Куриная грудка тушеная в сметанном соусе | C192: 50/50 | D192: 10.2 | E192: 12.36 | F192: 17.3 | G192: 221 | H192: 0.07 | I192: 0.08 | J192: 0 | K192: 0.036 | L192: 23.44 | M192: 140.14 | N192: 16.82 | O192: 1.12
B193: Хлеб пшеничный /ржано-пшеничный | C193: 60 | D193: 4.56 | E193: 0.48 | F193: 29.52 | G193: 142 | H193: 0 | I193: 0.028 | J193: 0.438 | K193: 0 | L193: 8.76 | M193: 32.22 | N193: 7.2 | O193: 0.7
A194: №377 | B194: Чай с сахаром и курагой | C194: 200/15/7 | D194: 0.2 | E194: 1.5 | F194: 15.7 | G194: 65.3 | H194: 0 | I194: 0 | J194: 0 | K194: 0 | L194: 0.45 | M194: 0 | N194: 0 | O194: 0.045
B195: Итого за завтрак: | D195: =SUM(D188:D194) -> 23.05 | E195: 22.07 | F195: 99.97 | G195: 692.03 | H195: 2.23 | I195: 0.368 | J195: 0.638 | K195: 48.536 | L195: 82.56 | M195: 308.56 | N195: 83.62 | O195: 5.955
B196: Обед
A197: №15 | B197: Сыр | C197: 20 | D197: 4.22 | E197: 5.3 | F197: 0.7 | G197: 71.3 | H197: 0.6 | I197: 0 | J197: 0 | K197: 0.04 | L197: 305 | M197: 81 | N197: 0.75 | O197: 0.14
A198: №112 | B198: Суп с макаронными изделиями на мкб со сметаной | C198: 225/15/10 | D198: 9.9 | E198: 11.1 | F198: 27.44 | G198: 249.26 | H198: 0.01 | I198: 0.13 | J198: 0.09 | K198: 12.77 | L198: 20.65 | M198: 60.4 | N198: 25.67 | O198: 1.35
A199: №304 | B199: Рис отварной | C199: 180 | D199: 4.44 | E199: 8.04 | F199: 44.67 | G199: 264 | H199: 0.04 | I199: 0.05 | J199: 0.03 | K199: 0 | L199: 9.3 | M199: 100 | N199: 32.5 | O199: 0.67
A200: №229 | B200: Рыба припущенная с овощами | C200: 90/30 | D200: 9.33 | E200: 6.49 | F200: 10.2 | G200: 136.53 | H200: 0.04 | I200: 0.11 | J200: 0.12 | K200: 2.55 | L200: 52.95 | M200: 239.39 | N200: 56.27 | O200: 0.89
B202: Хлеб пшеничный /ржано-пшеничный | C202: 60 | D202: 4.56 | E202: 0.48 | F202: 29.52 | G202: 142 | H202: 0 | I202: 0.028 | J202: 0.438 | K202: 0 | L202: 8.76 | M202: 32.22 | N202: 7.2 | O202: 0.7
A203: №348 | B203: Компот из сухофруктов | C203: 200 | D203: 0.54 | E203: 0 | F203: 17.58 | G203: 70.53 | H203: 0.18 | I203: 0.005 | J203: 0.02 | K203: 0.03 | L203: 2.56 | M203: 3.56 | N203: 1.74 | O203: 0.1
B204: Итого за обед: | D204: =SUM(D197:D203) -> 32.99 | E204: 31.41 | F204: 130.11 | G204: 933.62 | H204: 0.87 | I204: 0.323 | J204: 0.698 | K204: 15.39 | L204: 399.22 | M204: 516.57 | N204: 124.13 | O204: 3.85
B205: Итого за 1 день: | D205: =D204+D195 -> 56.04 | E205: =E204+E195 -> 53.48 | F205: 230.08 | G205: 1625.65 | H205: 3.1 | I205: 0.691 | J205: 1.336 | K205: 63.926 | L205: 481.78 | M205: 825.13 | N205: 207.75 | O205: 9.805
B207: День 11 / Пятница
B208: Завтрак
A209: №45/ №71 | B209: Салат из белокочанной капусты с огурцами (до 1 марта)/ салат из припущенной моркови с яблоками (после 1 марта) | C209: 100 | D209: 1.33 | E209: 0.17 | F209: 4.4 | G209: 24.45 | H209: 0 | I209: 0.03 | J209: 2.3 | K209: 36 | L209: 42.5 | M209: 30.4 | N209: 16.5 | O209: 0.573
A211: №312 | B211: Картофельное пюре | C211: 180 | D211: 4.8 | E211: 8.52 | F211: 48.67 | G211: 290.56 | H211: 0.04 | I211: 0.05 | J211: 0.03 | K211: 0 | L211: 9.3 | M211: 100 | N211: 32.5 | O211: 0.67
A212: №268 | B212: Котлета из говядины с соусом | C212: 90/20 | D212: 12.7 | E212: 15 | F212: 14.3 | G212: 243 | H212: 1.36 | I212: 0.12 | J212: 0.14 | K212: 2.36 | L212: 26 | M212: 175.9 | N212: 22.8 | O212: 0.78
B214: Хлеб пшеничный /ржано-пшеничный | C214: 50 | D214: 2.7 | E214: 0.5 | F214: 16.5 | G214: 95 | H214: 0 | I214: 0.028 | J214: 0.438 | K214: 0 | L214: 8.76 | M214: 32.22 | N214: 7.2 | O214: 0.7
A216: №376 | B216: Чай с сахаром | C216: 180/15 | D216: 0.021 | E216: 0.005 | F216: 14.975 | G216: 60 | H216: 0 | I216: 0 | J216: 0 | K216: 0 | L216: 0.45 | M216: 0 | N216: 0 | O216: 0.045
B217: Итого за завтрак: | D217: =SUM(D209:D216) -> 21.551 | E217: 24.14 | F217: 98.845 | G217: 713.01 | H217: 1.4 | I217: 0.228 | J217: 2.908 | K217: 38.36 | L217: =SUM(L209:L216) -> 87.01 | M217: 338.52 | N217: 79 | O217: 2.768
B218: Обед
A219: №42 | B219: Салат картофельный с солеными огурцами | C219: 100 | D219: 1.6 | E219: 8.99 | F219: 8.5 | G219: 121.3 | H219: 1.02 | I219: 0.067 | J219: 0.7 | K219: 10.5 | L219: 22.3 | M219: 58.5 | N219: 18.4 | O219: 0.88
A220: №88 | B220: Щи из свежей капусты с картофелем на мкб со сметаной | C220: 225/15/10 | D220: 7.5 | E220: 8.5 | F220: 18.2 | G220: 187.7 | H220: 0.15 | I220: 0.45 | J220: 0.6 | K220: 10.25 | L220: 45.25 | M220: 78.74 | N220: 24.45 | O220: 1.15
A221: №306 | B221: Пюре гороховое | C221: 180 | D221: 6.14 | E221: 6.98 | F221: 45.4 | G221: 268.98 | H221: 0.04 | I221: 0.054 | J221: 0.011 | K221: 0 | L221: 155.8 | M221: 136.6 | N221: 52.85 | O221: 0.42
A222: №288 | B222: Курица тушеная с овощами | C222: 80/30 | D222: 14 | E222: 8.65 | F222: 17.6 | G222: 182 | H222: 0.646 | I222: 0.111 | J222: 0 | K222: 7.46 | L222: 19 | M222: 6.14 | N222: 24.12 | O222: 1.57
B224: Хлеб пшеничный /ржано-пшеничный | C224: 60 | D224: 3.8 | E224: 0.48 | F224: 22.42 | G224: 140.4 | H224: 0 | I224: 0.028 | J224: 0.438 | K224: 0 | L224: 8.76 | M224: 32.22 | N224: 7.2 | O224: 0.7
A225: №359 | B225: Кисель | C225: 200 | D225: 0 | E225: 0 | F225: 20.9 | G225: 83.9 | H225: 0 | I225: 0 | J225: 0 | K225: 0 | L225: 0.3 | M225: 0 | N225: 0 | O225: 0.45
B226: Итого за обед: | D226: =SUM(D219:D225) -> 33.04 | E226: =SUM(E219:E225) -> 33.6 | F226: =SUM(F219:F225) -> 133.02 | G226: =SUM(G219:G225) -> 984.28 | H226: =H219+H220+H221+H222+H223+H224+H225 -> 1.856 | I226: 0.71 | J226: 1.749 | K226: 28.21 | L226: 251.41 | M226: 312.2 | N226: 127.02 | O226: 5.17
B227: Итого за 1 день: | D227: =D226+D217 -> 54.591 | E227: =E226+E217 -> 57.74 | F227: 231.865 | G227: 1697.29 | H227: 3.256 | I227: 0.938 | J227: 4.657 | K227: 66.57 | L227: 338.42 | M227: 650.72 | N227: 206.02 | O227: 7.938
B229: День 12 / Суббота
B230: Завтрак
A231: №67 | B231: Винегрет овощной | C231: 100 | D231: 1.45 | E231: 10.2 | F231: 9.7 | G231: 136.4 | H231: 0 | I231: 0.03 | J231: 2.3 | K231: 36 | L231: 42.56 | M231: 30.43 | N231: 16.53 | O231: 0.57
A233: №291 | B233: Плов из птицы | C233: 220 | D233: 16.2 | E233: 12.9 | F233: 42.8 | G233: 352.1 | H233: 1.7 | I233: 0.121 | J233: 0 | K233: 6.27 | L233: 24.39 | M233: 87.45 | N233: 45.21 | O233: 1.67
B235: Хлеб пшеничный /ржано-пшеничный | C235: 60 | D235: 4.56 | E235: 0.48 | F235: 29.52 | G235: 142 | H235: 0 | I235: 0.028 | J235: 0.438 | K235: 0 | L235: 8.76 | M235: 32.22 | N235: 7.2 | O235: 0.7
A236: №685/2004 | B236: Чай с сахаром и яблоками | C236: 175/15/10 | D236: 0.2 | E236: 0.5 | F236: 15.7 | G236: 65.3 | H236: 0 | I236: 0 | J236: 0 | K236: 0 | L236: 0.45 | M236: 0 | N236: 0 | O236: 0.045
B237: Итого за завтрак: | D237: =SUM(D231:D236) -> 22.41 | E237: =SUM(E231:E236) -> 24.08 | F237: =SUM(F231:F236) -> 97.72 | G237: =SUM(G231:G236) -> 695.8 | H237: =SUM(H231:H236) -> 1.7 | I237: 0.179 | J237: 2.738 | K237: 42.27 | L237: 76.16 | M237: 150.1 | N237: 68.94 | O237: 2.985
B238: Обед
A239: №71 | B239: Огурцы свежие с маслом | C239: 100 | D239: 0.73 | E239: 6.75 | F239: 3.13 | G239: 76.2 | H239: 0 | I239: 0.017 | J239: 0.04 | K239: 10 | L239: 23 | M239: 42 | N239: 14 | O239: 0.6
A240: №96 | B240: Рассольник Ленинградский на мкб со сметаной | C240: 225/15/10 | D240: 7.02 | E240: 8.2 | F240: 18.95 | G240: 191.3 | H240: 0.18 | I240: 0.12 | J240: 0.1 | K240: 10.68 | L240: 28.84 | M240: 105.4 | N240: 29.7 | O240: 1.38
A241: №259 | B241: Жаркое по-домашнему (из говядины) | C241: 220 | D241: 14.5 | E241: 14.3 | F241: 51.6 | G241: 393.1 | H241: 0.15 | I241: 0.18 | J241: 0.2 | K241: 21.67 | L241: 31.33 | M241: 225 | N241: 49.59 | O241: 1.92
B243: Хлеб пшеничный /ржано-пшеничный | C243: 60 | D243: 4.56 | E243: 0.48 | F243: 29.52 | G243: 142 | H243: 0 | I243: 0.028 | J243: 0.438 | K243: 0 | L243: 8.76 | M243: 32.22 | N243: 7.2 | O243: 0.7
A244: №49 | B244: Компот из изюма | C244: 200 | D244: 3.97 | E244: 2.1 | F244: 25.168 | G244: 145 | H244: 20 | I244: 0.044 | J244: 0.12 | K244: 1.3 | L244: 125 | M244: 116 | N244: 21 | O244: 1.04
... 5 more rows

Sheet Примерное меню 5-11 классы (2)
A1: Согласовано: | H1: Утверждаю:
A2: Директор "Базарно-Матакская гимназия им.Н.Даули" | H2: Председатель СПОСПК "Эдем"
A3: Алькеевского муниципального района РТ
A4: _________________ Яруллина Ф.Г. | H4: _____________Турнина А. А.
A7: Примерное двухнедельное меню рационов горячего питания для учащихся 5-11 классов в общеобразовательных учреждениях на 2022 учебный год
A9: № рец. | B9: Приём пищи/ Наименование блюд | C9: Масса порций блюд, в гр. | D9: Пищевые вещества (г) | G9: Энергетическая ценность (ккал) | H9: Витамины (мг) | L9: Минеральные вещества (мг)
D10: Белки | E10: Жиры | F10: Углеводы | H10: А | I10: В1 | J10: Е | K10: С | L10: Ca | M10: P | N10: Mg | O10: Fe
B11: День 1 / Понедельник
B12: Завтрак
A13: №17/71 | B13: Салат из белокочанной капусты с огурцами (до 1 марта) /огурцы свежие порционно (после 1 марта) | C13: 100 | D13: 1.33 | E13: 0.167 | F13: 4.33 | G13: 24.1 | H13: 0.52 | I13: 0.06 | J13: 0.08 | K13: 10.5 | L13: 22.3 | M13: 58.8 | N13: 18.4 | O13: 0.88
A14: №304 | B14: Рис отварной | C14: 180 | D14: 4.44 | E14: 8.04 | F14: 44.67 | G14: 264 | H14: 0.04 | I14: 0.05 | J14: 0.03 | K14: 0 | L14: 9.3 | M14: 100 | N14: 32.5 | O14: 0.67
A15: №268 | B15: Котлета из говядины с соусом | C15: 90/20 | D15: 12.7 | E15: 15 | F15: 14.3 | G15: 243 | H15: 1.36 | I15: 0.12 | J15: 0.14 | K15: 2.36 | L15: 26 | M15: 175.9 | N15: 22.8 | O15: 0.78
B16: Хлеб пшеничный /ржано-пшеничный | C16: 50 | D16: 3 | E16: 0.4 | F16: 13.2 | G16: 68.4 | H16: 0 | I16: 0.028 | J16: 0.438 | K16: 0 | L16: 8.76 | M16: 32.22 | N16: 7.2 | O16: 0.7
A17: №376 | B17: Чай с сахаром | C17: 180/15 | D17: 0.021 | E17: 0.005 | F17: 14.975 | G17: 60 | H17: 0 | I17: 0 | J17: 0 | K17: 0 | L17: 0.45 | M17: 0 | N17: 0 | O17: 0.045
B18: Итого за завтрак: | D18: =SUM(D13:D17) -> 21.491 | E18: =SUM(E13:E17) -> 23.612 | F18: =SUM(F13:F17) -> 91.475 | G18: =SUM(G13:G17) -> 659.5 | H18: =SUM(H13:H17) -> 1.92 | I18: 0.258 | J18: 0.688 | K18: 12.86 | L18: 66.81 | M18: 366.92 | N18: 80.9 | O18: 3.075
B19: Обед
A20: №59 / 42 | B20: Салат из моркови с яблоком (до 1 марта) / Салат картофельный с солеными огурцами (после 1 марта) | C20: 100 | D20: 0.98 | E20: 9.3 | F20: 8.65 | G20: 122.22 | H20: 0 | I20: 0.048 | J20: 0.024 | K20: 15 | L20: 8.4 | M20: 15.6 | N20: 12 | O20: 0.58
A21: №82 | B21: Борщ с капустой и картофелем на мкб со сметаной | C21: 225/15/10 | D21: 7.5 | E21: 7.99 | F21: 23.09 | G21: 184 | H21: 0.27 | I21: 0.06 | J21: 0.28 | K21: 9.9 | L21: 44.87 | M21: 81.62 | N21: 26.53 | O21: 1.47
A22: №306 | B22: Пюре гороховое | C22: 180 | D22: 6.14 | E22: 6.98 | F22: 45.4 | G22: 268.98 | H22: 0.04 | I22: 0.054 | J22: 0.011 | K22: 0 | L22: 155.8 | M22: 136.6 | N22: 52.85 | O22: 0.42
A23: №301 | B23: Кнели куриные с соусом | C23: 90/20 | D23: 12.7 | E23: 8.5 | F23: 15.3 | G23: 188.5 | H23: 0.04 | I23: 0.1 | J23: 0.14 | K23: 5.87 | L23: 18.4 | M23: 50 | N23: 28.38 | O23: 1.48
B25: Хлеб пшеничный /ржано-пшеничный | C25: 60 | D25: 4.56 | E25: 0.48 | F25: 29.52 | G25: 142 | H25: 0 | I25: 0.028 | J25: 0.438 | K25: 0 | L25: 8.76 | M25: 32.22 | N25: 7.2 | O25: 0.7
A26: №348 | B26: Компот из сухофруктов | C26: 200 | D26: 0.54 | E26: 0 | F26: 17.58 | G26: 70.53 | H26: 0.18 | I26: 0.005 | J26: 0.02 | K26: 0.03 | L26: 2.56 | M26: 3.56 | N26: 1.74 | O26: 0.1
B27: Итого за обед: | D27: =SUM(D20:D26) -> 32.42 | E27: =SUM(E20:E26) -> 33.25 | F27: =SUM(F20:F26) -> 139.54 | G27: =SUM(G20:G26) -> 976.23 | H27: =SUM(H20:H26) -> 0.53 | I27: =I20+I21+I22+I23+I24+I25+I26 -> 0.295 | J27: 0.913 | K27: 30.8 | L27: 238.79 | M27: 319.6 | N27: 128.7 | O27: 4.75
B28: Итого за 1 день: | D28: =D27+D18 -> 53.911 | E28: =E27+E18 -> 56.862 | F28: 231.015 | G28: 1635.73 | H28: 2.45 | I28: 0.553 | J28: 1.601 | K28: 43.66 | L28: 305.6 | M28: 686.52 | N28: 209.6 | O28: 7.825
B30: День 2 / Вторник
B31: Завтрак
A32: №52 | B32: Салат из отварной свеклы | C32: 100 | D32: 1.45 | E32: 6.75 | F32: 15.35 | G32: 127.8 | H32: 0 | I32: 0.025 | J32: 0.033 | K32: 8 | L32: 27.92 | M32: 36.3 | N32: 17.5 | O32: 1.05
A34: ТТК №50 | B34: Жаркое из птицы | C34: 230 | D34: 17.5 | E34: 16.9 | F34: 36.6 | G34: 368.5 | H34: 1.35 | I34: 0.215 | J34: 0 | K34: 28.98 | L34: 48.1 | M34: 90.97 | N34: 52.58 | O34: 2.42
B36: Хлеб пшеничный /ржано-пшеничный | C36: 60 | D36: 4.56 | E36: 0.48 | F36: 29.52 | G36: 142 | H36: 0 | I36: 0.028 | J36: 0.438 | K36: 0 | L36: 8.76 | M36: 32.22 | N36: 7.2 | O36: 0.7
A37: №376 | B37: Чай с сахаром и лимоном | C37: 180/15/5 | D37: 0.045 | E37: 0.005 | F37: 15.12 | G37: 60.7 | H37: 20 | I37: 0.044 | J37: 0.12 | K37: 1.3 | L37: 125 | M37: 116 | N37: 21 | O37: 1.04
B38: Итого за завтрак: | D38: =SUM(D32:D37) -> 23.555 | E38: =SUM(E32:E37) -> 24.135 | F38: =SUM(F32:F37) -> 96.59 | G38: =SUM(G32:G37) -> 699 | H38: =SUM(H32:H37) -> 21.35 | I38: =SUM(I32:I37) -> 0.312 | J38: 0.591 | K38: =K32+K33+K34+K35+K36+K37 -> 38.28 | L38: 209.78 | M38: 275.49 | N38: 98.28 | O38: 5.21
B39: Обед
A40: №15 | B40: Сыр | C40: 15 | D40: 3.9 | E40: 3.97 | F40: 0.52 | G40: 54.75 | H40: 0.6 | I40: 0 | J40: 0 | K40: 0.04 | L40: 305 | M40: 81 | N40: 0.75 | O40: 0.14
A41: №88 | B41: Щи из свежей капусты с картофелем на мкб со сметаной | C41: 225/15/10 | D41: 8 | E41: 11.43 | F41: 18.2 | G41: 207.67 | H41: 0.15 | I41: 0.45 | J41: 0.6 | K41: 10.25 | L41: 45.25 | M41: 78.74 | N41: 24.45 | O41: 1.15
A42: №312 | B42: Картофельное пюре | C42: 180 | D42: 4.8 | E42: 8.52 | F42: 48.67 | G42: 290.56 | H42: 0.04 | I42: 0.05 | J42: 0.03 | K42: 0 | L42: 9.3 | M42: 100 | N42: 32.5 | O42: 0.67
A43: №234 | B43: Биточки рыбные с соусом | C43: 90/30 | D43: 8.55 | E43: 7.03 | F43: 18.35 | G43: 182.76 | H43: 0.04 | I43: 0.11 | J43: 0.132 | K43: 2.55 | L43: 52.95 | M43: 239.39 | N43: 56.27 | O43: 0.89
B45: Хлеб пшеничный /ржано-пшеничный | C45: 60 | D45: 4.56 | E45: 0.48 | F45: 29.52 | G45: 142 | H45: 0 | I45: 0.028 | J45: 0.438 | K45: 0 | L45: 8.76 | M45: 32.22 | N45: 7.2 | O45: 0.7
A46: №342 | B46: Компот из яблок | C46: 200 | D46: 0.2 | E46: 0.005 | F46: 15.7 | G46: 65.3 | H46: 0 | I46: 0 | J46: 0 | K46: 0 | L46: 0.45 | M46: 0 | N46: 0 | O46: 0.045
B47: Итого за обед: | D47: =SUM(D40:D46) -> 30.01 | E47: =SUM(E40:E46) -> 31.435 | F47: =SUM(F40:F46) -> 130.96 | G47: =SUM(G40:G46) -> 943.04 | H47: =SUM(H41:H46) -> 0.23 | I47: =I40+I41+I42+I43+I44+I45+I46 -> 0.638 | J47: 1.2 | K47: 12.84 | L47: 421.71 | M47: 531.35 | N47: 121.17 | O47: 3.595
B48: Итого за 1 день: | D48: =D38+D47 -> 53.565 | E48: =E38+E47 -> 55.57 | F48: 227.55 | G48: 1642.04 | H48: 21.58 | I48: 0.95 | J48: 1.791 | K48: 51.12 | L48: 631.49 | M48: 806.84 | N48: 219.45 | O48: 8.805
B50: День 3 / Среда
B51: Завтрак
A52: №338 | B52: Фрукт | C52: 100 | D52: 0.4 | E52: 0.4 | F52: 7.35 | G52: 46.6 | H52: 0 | I52: 0.03 | J52: 0.2 | K52: 10 | L52: 16 | M52: 11 | N52: 9 | O52: 2.2
A53: №203 | B53: Макароны отварные со сливочным маслом | C53: 180 | D53: 6.84 | E53: 8.95 | F53: 41.2 | G53: 244.8 | H53: 0.04 | I53: 0.011 | J53: 0.03 | K53: 0 | L53: 14.7 | M53: 59.5 | N53: 10.45 | O53: 1.06
A54: №294 | B54: Котлета из птицы с соусом | C54: 90/20 | D54: 11.4 | E54: 12.7 | F54: 6.59 | G54: 186.26 | H54: 0.012 | I54: 0.01 | J54: 0.13 | K54: 1.62 | L54: 19.87 | M54: 151 | N54: 18.85 | O54: 2.62
B56: Хлеб пшеничный /ржано-пшеничный | C56: 60 | D56: 4.56 | E56: 0.48 | F56: 29.52 | G56: 142 | H56: 0 | I56: 0.028 | J56: 0.438 | K56: 0 | L56: 8.76 | M56: 32.22 | N56: 7.2 | O56: 0.7
A57: №685/2004 | B57: Чай с сахаром и яблоками | C57: 175/15/10 | D57: 0.2 | E57: 0.5 | F57: 15.7 | G57: 65.3 | H57: 0 | I57: 0 | J57: 0 | K57: 0 | L57: 0.45 | M57: 0 | N57: 0 | O57: 0.045
B58: Итого за завтрак: | D58: =SUM(D52:D57) -> 23.4 | E58: 23.03 | F58: 100.36 | G58: 684.96 | H58: 0.052 | I58: 0.079 | J58: 0.798 | K58: 11.62 | L58: 59.78 | M58: 253.72 | N58: 45.5 | O58: 6.625
B59: Обед
A60: №45 / 67 | B60: Салат из белокачанной капусты (до 1 марта)/ Винегрет овощной(после 1 марта) | C60: 100 | D60: 1.55 | E60: 5.5 | F60: 17.11 | G60: 124.14 | H60: 0 | I60: 0.018 | J60: 1.391 | K60: 21.603 | L60: 25.537 | M60: 18.26 | N60: 9.92 | O60: 0.344
A61: №96 | B61: Рассольник Ленинградский на мкб со сметаной | C61: 225/15/10 | D61: 7.02 | E61: 8.2 | F61: 18.95 | G61: 191.3 | H61: 0.18 | I61: 0.12 | J61: 0.1 | K61: 10.68 | L61: 28.84 | M61: 105.4 | N61: 29.7 | O61: 1.38
A62: №265 | B62: Плов с говядиной (крупа гречневая) | C62: 230 | D62: 19.32 | E62: 18.1 | F62: 46.36 | G62: 425.62 | H62: 0 | I62: 0.34 | J62: 0.24 | K62: 1.1 | L62: 26.6 | M62: 336 | N62: 159 | O62: 0.65
B63: Хлеб пшеничный /ржано-пшеничный | C63: 60 | D63: 4.56 | E63: 0.48 | F63: 29.52 | G63: 142 | H63: 0 | I63: 0.028 | J63: 0.438 | K63: 0 | L63: 8.76 | M63: 32.22 | N63: 7.2 | O63: 0.7
A64: №377 | B64: Чай с сахаром и курагой | C64: 175/15/7 | D64: 0.2 | E64: 1.5 | F64: 15.7 | G64: 65.3 | H64: 0 | I64: 0 | J64: 0 | K64: 0 | L64: 0.45 | M64: 0 | N64: 0 | O64: 0.045
B65: Итого за обед: | D65: =SUM(D60:D64) -> 32.65 | E65: 33.78 | F65: 127.64 | G65: 948.36 | H65: 0.18 | I65: 0.506 | J65: 2.169 | K65: 33.383 | L65: 90.187 | M65: 491.88 | N65: 205.82 | O65: 3.119
B66: Итого за 1 день: | D66: =D58+D65 -> 56.05 | E66: 56.81 | F66: 228 | G66: 1633.32 | H66: 0.232 | I66: 0.585 | J66: 2.967 | K66: 45.003 | L66: 149.967 | M66: 745.6 | N66: 251.32 | O66: 9.744
B68: День 4 / Черверг
B69: Завтрак
A70: №338 | B70: Фрукт | C70: 100 | D70: 1.69 | E70: 2.1 | F70: 13 | G70: 77.7 | H70: 0 | I70: 0.03 | J70: 0.2 | K70: 10 | L70: 16 | M70: 11 | N70: 9 | O70: 2.2
A71: №173 | B71: Каша молочная геркулесовая со сливочным маслом | C71: 200/5/10 | D71: 7.3 | E71: 10.39 | F71: 16.43 | G71: 188.4 | H71: 0.05 | I71: 0.23 | J71: 0.24 | K71: 1.3 | L71: 331.5 | M71: 327.1 | N71: 54.5 | O71: 2.11
A72: №406 | B72: Перемяч печеный с мясом | C72: 60 | D72: 8.11 | E72: 8.95 | F72: 24.53 | G72: 192 | H72: 0.003 | I72: 0.07 | J72: 0.057 | K72: 0.678 | L72: 0 | M72: 76.62 | N72: 11.58 | O72: 1.01
B74: Хлеб пшеничный /ржано-пшеничный | C74: 60 | D74: 4.56 | E74: 0.48 | F74: 29.52 | G74: 142 | H74: 0 | I74: 0.028 | J74: 0.438 | K74: 0 | L74: 8.76 | M74: 32.22 | N74: 7.2 | O74: 0.7
A75: №376 | B75: Чай с сахаром | C75: 180/15 | D75: 0.021 | E75: 0.005 | F75: 14.975 | G75: 60 | H75: 0 | I75: 0 | J75: 0 | K75: 0 | L75: 0.45 | M75: 0 | N75: 0 | O75: 0.045
B76: Итого за завтрак: | D76: =SUM(D70:D75) -> 21.681 | E76: =SUM(E70:E75) -> 21.925 | F76: =SUM(F70:F75) -> 98.455 | G76: =SUM(G70:G75) -> 660.1 | H76: =H70+H71+H72+H73+H74+H75 -> 0.053 | I76: 0.358 | J76: 0.935 | K76: 11.978 | L76: 356.71 | M76: 446.94 | N76: 82.28 | O76: 6.065
B77: Обед
A78: №66/ ТТК №27 | B78: Салат из моркови (до 1 марта)/ салат из припущенной моркови с яблоками (после 1 марта) | C78: 100 | D78: 1.2 | E78: 10.06 | F78: 14 | G78: 151.7 | H78: 0 | I78: 0.03 | J78: 0.2 | K78: 10 | L78: 16 | M78: 11 | N78: 9 | O78: 2.2
A79: №112 | B79: Суп с макаронными изделиями на мкб со сметаной | C79: 225/15/10 | D79: 8.36 | E79: 6.33 | F79: 27.44 | G79: 200 | H79: 0.01 | I79: 0.13 | J79: 0.09 | K79: 12.77 | L79: 20.65 | M79: 60.4 | N79: 25.67 | O79: 1.35
A80: № 289 | B80: Рагу из птицы | C80: 220 | D80: 15.56 | E80: 16.42 | F80: 38.9 | G80: 365.6 | H80: 1.98 | I80: 0.165 | J80: 0 | K80: 39.6 | L80: 56.1 | M80: 68.86 | N80: 44.44 | O80: 2.09
B82: Хлеб пшеничный /ржано-пшеничный | C82: 60 | D82: 4.56 | E82: 0.48 | F82: 29.52 | G82: 142 | H82: 0 | I82: 0.028 | J82: 0.438 | K82: 0 | L82: 8.76 | M82: 32.22 | N82: 7.2 | O82: 0.7
A83: №348 | B83: Компот из сухофруктов | C83: 200 | D83: 0.54 | E83: 0 | F83: 17.58 | G83: 70.53 | H83: 0.18 | I83: 0.005 | J83: 0.02 | K83: 0.03 | L83: 2.56 | M83: 3.56 | N83: 1.74 | O83: 0.1
B84: Итого за обед: | D84: =SUM(D78:D83) -> 30.22 | E84: 33.29 | F84: 127.44 | G84: 929.83 | H84: 2.17 | I84: 0.358 | J84: 0.748 | K84: 62.4 | L84: 104.07 | M84: 176.04 | N84: 88.05 | O84: 6.44
B85: Итого за 1 день: | D85: =D76+D84 -> 51.901 | E85: =E76+E84 -> 55.215 | F85: 225.895 | G85: 1589.93 | H85: 2.223 | I85: 0.716 | J85: 1.683 | K85: 74.378 | L85: 460.78 | M85: 622.98 | N85: 170.33 | O85: 12.505
B87: День 5 / Пятница
B88: Завтрак
A89: №42 | B89: Салат картофельный с солеными огурцами | C89: 100 | D89: 1.6 | E89: 8.99 | F89: 8.5 | G89: 121.3 | H89: 1.02 | I89: 0.067 | J89: 0.7 | K89: 10.5 | L89: 22.3 | M89: 58.5 | N89: 18.4 | O89: 0.88
A91: №291 | B91: Плов из птицы | C91: 220 | D91: 16.2 | E91: 12.9 | F91: 42.8 | G91: 352.1 | H91: 1.7 | I91: 0.121 | J91: 0 | K91: 6.27 | L91: 24.39 | M91: 87.45 | N91: 45.21 | O91: 1.67
B93: Хлеб пшеничный /ржано-пшеничный | C93: 50 | D93: 3.8 | E93: 0.5 | F93: 24.6 | G93: 117.2 | H93: 0 | I93: 0.028 | J93: 0.438 | K93: 0 | L93: 8.76 | M93: 32.22 | N93: 7.2 | O93: 0.7
A94: №376 | B94: Чай с сахаром и лимоном | C94: 180/15/5 | D94: 0.045 | E94: 0.005 | F94: 15.12 | G94: 60.7 | H94: 20 | I94: 0.044 | J94: 0.12 | K94: 1.3 | L94: 125 | M94: 116 | N94: 21 | O94: 1.04
B95: Итого за завтрак: | D95: =SUM(D89:D94) -> 21.645 | E95: 22.395 | F95: 91.02 | G95: 651.3 | H95: 22.72 | I95: 0.26 | J95: 1.258 | K95: 18.07 | L95: 180.45 | M95: 294.17 | N95: 91.81 | O95: 4.29
B96: Обед
A97: №49 / 70 | B97: Салат "Витаминный" (до 1 марта) / Огурцы соленые (после 1 марта) | C97: 100 | D97: 1.12 | E97: 4.78 | F97: 10.6 | G97: 89.9 | H97: 0 | I97: 0.02 | J97: 0.02 | K97: 24.75 | L97: 34.9 | M97: 29.35 | N97: 18.3 | O97: 0.96
A98: №102 | B98: Суп картофельный с бобовыми(гороховый) на мкб | C98: 235/15 | D98: 7.99 | E98: 4.2 | F98: 13.69 | G98: 124.52 | H98: 0 | I98: 0.19 | J98: 0.09 | K98: 1.15 | L98: 25.23 | M98: 95.62 | N98: 30.56 | O98: 1.84
A99: №203 | B99: Макароны отварные со сливочным маслом | C99: 180 | D99: 6.84 | E99: 8.95 | F99: 41.2 | G99: 244.8 | H99: 0.04 | I99: 0.011 | J99: 0.03 | K99: 0 | L99: 14.7 | M99: 59.5 | N99: 10.45 | O99: 1.06
A100: №268 | B100: Котлета из говядины с соусом | C100: 90/20 | D100: 12.5 | E100: 15 | F100: 14.3 | G100: 243 | H100: 1.36 | I100: 0.12 | J100: 0.14 | K100: 2.36 | L100: 26 | M100: 175.9 | N100: 22.8 | O100: 0.78
B102: Хлеб пшеничный /ржано-пшеничный | C102: 60 | D102: 4.56 | E102: 0.48 | F102: 29.52 | G102: 142 | H102: 0 | I102: 0.028 | J102: 0.438 | K102: 0 | L102: 8.76 | M102: 32.22 | N102: 7.2 | O102: 0.7
A103: №359 | B103: Кисель | C103: 200 | D103: 0 | E103: 0 | F103: 20.9 | G103: 83.9 | H103: 0 | I103: 0 | J103: 0 | K103: 0 | L103: 0.3 | M103: 0 | N103: 0 | O103: 0.45
B104: Итого за обед: | D104: =SUM(D97:D103) -> 33.01 | E104: 33.41 | F104: 130.21 | G104: 928.12 | H104: 1.4 | I104: 0.369 | J104: 0.718 | K104: 28.26 | L104: 109.89 | M104: 392.59 | N104: 89.31 | O104: 5.79
B105: Итого за 1 день: | D105: =D104+D95 -> 54.655 | E105: =E104+E95 -> 55.805 | F105: 221.23 | G105: 1579.42 | H105: 24.12 | I105: 0.629 | J105: 1.976 | K105: 46.33 | L105: 290.34 | M105: 686.76 | N105: 181.12 | O105: 10.08
B107: День 6 / Суббота
B108: Завтрак
A109: № 20 | B109: Огурцы свежие с маслом | C109: 100 | D109: 3.57 | E109: 8.48 | F109: 4.11 | G109: 107.04 | H109: 1 | I109: 0 | J109: 0 | K109: 0.06 | L109: 508 | M109: 135 | N109: 1.25 | O109: 0.23
A110: №312 | B110: Картофельное пюре | C110: 180 | D110: 4.8 | E110: 8.52 | F110: 48.67 | G110: 290.56 | H110: 0.04 | I110: 0.05 | J110: 0.03 | K110: 0 | L110: 9.3 | M110: 100 | N110: 32.5 | O110: 0.67
A111: №229 | B111: Рыба припущенная с овощами | C111: 90/30 | D111: 9.33 | E111: 6.49 | F111: 10.2 | G111: 136.53 | H111: 0.04 | I111: 0.11 | J111: 0.12 | K111: 2.55 | L111: 52.95 | M111: 239.39 | N111: 56.27 | O111: 0.89
B113: Хлеб пшеничный /ржано-пшеничный | C113: 60 | D113: 3.6 | E113: 0.12 | F113: 19.7 | G113: 94.28 | H113: 0 | I113: 0.028 | J113: 0.438 | K113: 0 | L113: 8.76 | M113: 32.22 | N113: 7.2 | O113: 0.7
A115: №685/2004 | B115: Чай с сахаром и яблоками | C115: 175/15/10 | D115: 0.2 | E115: 0.5 | F115: 15.7 | G115: 65.3 | H115: 0 | I115: 0 | J115: 0 | K115: 0 | L115: 0.45 | M115: 0 | N115: 0 | O115: 0.045
B116: Итого за завтрак: | D116: =SUM(D109:D115) -> 21.5 | E116: 24.11 | F116: 98.38 | G116: 693.71 | H116: 1.08 | I116: 0.188 | J116: 0.588 | K116: 2.61 | L116: 579.46 | M116: 506.61 | N116: 97.22 | O116: 2.535
B117: Обед
A118: №52 | B118: Салат из отварной свеклы | C118: 100 | D118: 1.45 | E118: 6.75 | F118: 8.8 | G118: 101.75 | H118: 0 | I118: 0.02 | J118: 0.03 | K118: 10.18 | L118: 24.38 | M118: 26.75 | N118: 16.58 | O118: 0
A119: №108 | B119: Суп картофельный с клецками на мкб со сметаной | C119: 225/15/10 | D119: 6.59 | E119: 7.62 | F119: 24.45 | G119: 232 | H119: 0.02 | I119: 0.16 | J119: 0.12 | K119: 15.1 | L119: 25.66 | M119: 87.7 | N119: 28.38 | O119: 1.44
A120: №304 | B120: Рис отварной | C120: 180 | D120: 4.44 | E120: 8.04 | F120: 44.67 | G120: 264 | H120: 0.04 | I120: 0.05 | J120: 0.03 | K120: 0 | L120: 9.3 | M120: 100 | N120: 32.5 | O120: 0.67
A121: №288 | B121: Курица тушеная с овощами | C121: 80/30 | D121: 14 | E121: 8.65 | F121: 17.6 | G121: 182 | H121: 0.646 | I121: 0.111 | J121: 0 | K121: 7.46 | L121: 19 | M121: 6.14 | N121: 24.12 | O121: 1.57
B123: Хлеб пшеничный /ржано-пшеничный | C123: 60 | D123: 4.56 | E123: 0.48 | F123: 29.52 | G123: 142 | H123: 0 | I123: 0.028 | J123: 0.438 | K123: 0 | L123: 8.76 | M123: 32.22 | N123: 7.2 | O123: 0.7
A124: №342 | B124: Компот из свежих плодов | C124: 200 | D124: 0.17 | E124: 0.17 | F124: 19.18 | G124: 76.8 | H124: 0 | I124: 0.01 | J124: 0.01 | K124: 5.59 | L124: 7.1 | M124: 4.73 | N124: 8.17 | O124: 0
B125: Итого за обед: | D125: =SUM(D118:D124) -> 31.21 | E125: 31.71 | F125: 140.1 | G125: 998.55 | H125: 0.706 | I125: 0.379 | J125: 0.628 | K125: 38.33 | L125: 94.2 | M125: 257.54 | N125: 116.95 | O125: 4.38
B126: Итого за 1 день: | D126: =D125+D116 -> 52.71 | E126: =E125+E116 -> 55.82 | F126: 238.48 | G126: 1692.26 | H126: 1.786 | I126: =SUM(I118:I124) -> 0.379 | J126: 1.216 | K126: 40.94 | L126: 673.66 | M126: 764.15 | N126: 214.17 | O126: 6.915
B128: День 7 / Понедельник
B129: Завтрак
A130: №15 | B130: Сыр | C130: 15 | D130: 3.9 | E130: 3.97 | F130: 0.52 | G130: 54.75 | H130: 0.6 | I130: 0 | J130: 0 | K130: 0.04 | L130: 305 | M130: 81 | N130: 0.75 | O130: 0.14
A132: №173 | B132: Каша молочная ячневая со сливочным маслом | C132: 220/5/12 | D132: 8.6 | E132: 9.7 | F132: 28.36 | G132: 235.14 | H132: 0.05 | I132: 0.23 | J132: 0.24 | K132: 1.3 | L132: 331.5 | M132: 327.1 | N132: 54.5 | O132: 2.11
A133: №418 | B133: Пирожок с повидлом | C133: 60 | D133: 5.2 | E133: 7.9 | F133: 20.31 | G133: 173.14 | H133: 0.01 | I133: 0.06 | J133: 0.04 | K133: 0.25 | L133: 22.01 | M133: 41.55 | N133: 8.55 | O133: 0.75
B135: Хлеб пшеничный /ржано-пшеничный | C135: 60 | D135: 4.56 | E135: 0.48 | F135: 29.52 | G135: 142 | H135: 0 | I135: 0.028 | J135: 0.438 | K135: 0 | L135: 8.76 | M135: 32.22 | N135: 7.2 | O135: 0.7
A136: №376 | B136: Чай с сахаром | C136: 180/15 | D136: 0.021 | E136: 0.005 | F136: 14.975 | G136: 60 | H136: 0 | I136: 0 | J136: 0 | K136: 0 | L136: 0.45 | M136: 0 | N136: 0 | O136: 0.045
B137: Итого за завтрак: | D137: =SUM(D130:D136) -> 22.281 | E137: 22.055 | F137: 93.685 | G137: 665.03 | H137: 0.66 | I137: 0.318 | J137: 0.718 | K137: 1.59 | L137: 667.72 | M137: 481.87 | N137: 71 | O137: 3.745
B138: Обед
A139: №45 /67 | B139: Салат из белокочанной капусты (до 1 марта)/Салат из отварной свеклы с зеленым горошком (после 1 марта) | C139: 100 | D139: 1.67 | E139: 9.45 | F139: 9.33 | G139: 129 | H139: 0 | I139: 0.024 | J139: 1.854 | K139: 28.8 | L139: 34.05 | M139: 24.35 | N139: 13.22 | O139: 0.458
A140: №101 | B140: Суп картофельный с крупой (пшённый) на мкб со сметаной | C140: 225/15/10 | D140: 9.38 | E140: 9.5 | F140: 22.79 | G140: 223 | H140: 0 | I140: 0.15 | J140: 0.44 | K140: 10.5 | L140: 109.6 | M140: 112.8 | N140: 45.74 | O140: 1.9
A141: №259 | B141: Жаркое по-домашнему (из говядины) | C141: 220 | D141: 14.5 | E141: 14.3 | F141: 51.6 | G141: 393.1 | H141: 0.15 | I141: 0.18 | J141: 0.2 | K141: 21.67 | L141: 31.33 | M141: 225 | N141: 49.59 | O141: 1.92
B143: Хлеб пшеничный /ржано-пшеничный | C143: 60 | D143: 4.56 | E143: 0.48 | F143: 29.52 | G143: 142 | H143: 0 | I143: 0.028 | J143: 0.438 | K143: 0 | L143: 8.76 | M143: 32.22 | N143: 7.2 | O143: 0.7
A144: №348 | B144: Компот из сухофруктов | C144: 200 | D144: 0.54 | E144: 0 | F144: 17.58 | G144: 70.53 | H144: 0.18 | I144: 0.005 | J144: 0.02 | K144: 0.03 | L144: 2.56 | M144: 3.56 | N144: 1.74 | O144: 0.1
B145: Итого за обед: | D145: =SUM(D139:D144) -> 30.65 | E145: 33.73 | F145: 130.82 | G145: 957.63 | H145: 0.33 | I145: 0.387 | J145: 2.952 | K145: 61 | L145: 186.3 | M145: 397.93 | N145: =N139+N140+N141+N142+N143+N144 -> 117.49 | O145: 5.078
B146: Итого за 1 день: | D146: =D137+D145 -> 52.931 | E146: =E137+E145 -> 55.785 | F146: 224.505 | G146: 1622.66 | H146: 0.99 | I146: 0.705 | J146: 3.67 | K146: 62.59 | L146: 854.02 | M146: 879.8 | N146: 188.49 | O146: 8.823
B148: День 8 / Вторник
B149: Завтрак
A150: №338 | B150: Фрукт | C150: 100 | D150: 0.4 | E150: 0.4 | F150: 7.35 | G150: 46.6 | H150: 0 | I150: 0.03 | J150: 0.2 | K150: 10 | L150: 16 | M150: 11 | N150: 9 | O150: 2.2
A151: №287 | B151: Плов из говядины | C151: 230 | D151: 18.05 | E151: 21.7 | F151: 40.8 | G151: 430.9 | H151: 0 | I151: 0.1 | J151: 0.15 | K151: 56 | L151: 76.24 | M151: 189 | N151: 51.4 | O151: 2.59
B153: Хлеб пшеничный /ржано-пшеничный | C153: 60 | D153: 4.56 | E153: 0.48 | F153: 29.52 | G153: 142 | H153: 0 | I153: 0.028 | J153: 0.438 | K153: 0 | L153: 8.76 | M153: 32.22 | N153: 7.2 | O153: 0.7
A155: №376 | B155: Чай с сахаром и лимоном | C155: 180/15/5 | D155: 0.045 | E155: 0.005 | F155: 15.12 | G155: 60.7 | H155: 20 | I155: 0.044 | J155: 0.12 | K155: 1.3 | L155: 125 | M155: 116 | N155: 21 | O155: 1.04
B156: Итого за завтрак: | D156: =SUM(D150:D155) -> 23.055 | E156: 22.585 | F156: 92.79 | G156: 680.2 | H156: 20 | I156: 0.202 | J156: 0.908 | K156: 67.3 | L156: 226 | M156: 348.22 | N156: =N150+N151+N152+N153+N154+N155 -> 88.6 | O156: 6.53
B157: Обед
A158: № 59 / 71 | B158: Салат из моркови (до 1 марта) /Салат из припущенной моркови с изюмом (после 1 марта) | C158: 100 | D158: 1.21 | E158: 7.8 | F158: 14 | G158: 131.04 | H158: 0 | I158: 0.05 | J158: 0.07 | K158: 4.8 | L158: 49.3 | M158: 53.1 | N158: 36.7 | O158: 0.68
A159: №82 | B159: Борщ с капустой и картофелем на мкб со сметаной | C159: 225/15/10 | D159: 7.5 | E159: 7.99 | F159: 23.09 | G159: 184 | H159: 0.27 | I159: 0.06 | J159: 0.28 | K159: 9.9 | L159: 44.87 | M159: 81.62 | N159: 26.53 | O159: 1.47
A160: №203 | B160: Макароны отварные со сливочным маслом | C160: 180 | D160: 6.84 | E160: 8.95 | F160: 41.2 | G160: 244.8 | H160: 0.04 | I160: 0.011 | J160: 0.03 | K160: 0 | L160: 14.7 | M160: 59.5 | N160: 10.45 | O160: 1.06
A161: №301 | B161: Кнели куриные с соусом | C161: 90/20 | D161: 12.7 | E161: 8.5 | F161: 15.3 | G161: 188.5 | H161: 0.04 | I161: 0.1 | J161: 0.14 | K161: 5.87 | L161: 18.4 | M161: 50 | N161: 28.38 | O161: 1.48
B163: Хлеб пшеничный /ржано-пшеничный | C163: 60 | D163: 4.46 | E163: 0.48 | F163: 22.52 | G163: 113.6 | H163: 0 | I163: 0.028 | J163: 0.438 | K163: 0 | L163: 8.76 | M163: 32.22 | N163: 7.2 | O163: 0.7
A164: №359 | B164: Кисель | C164: 200 | D164: 0 | E164: 0 | F164: 20.9 | G164: 83.9 | H164: 0 | I164: 0 | J164: 0 | K164: 0 | L164: 0.3 | M164: 0 | N164: 0 | O164: 0.45
B165: Итого за обед: | D165: =SUM(D158:D164) -> 32.71 | E165: 33.72 | F165: 137.01 | G165: 945.84 | H165: 0.35 | I165: 0.249 | J165: 0.958 | K165: 20.57 | L165: 136.33 | M165: =M158+M159+M160+M161+M162+M163+M164 -> 276.44 | N165: 109.26 | O165: 5.84
B166: Итого за 1 день: | D166: =D156+D165 -> 55.765 | E166: =E156+E165 -> 56.305 | F166: 229.8 | G166: 1626.04 | H166: 20.35 | I166: 0.451 | J166: 1.866 | K166: 87.87 | L166: 362.33 | M166: 624.66 | N166: 197.86 | O166: 12.37
B168: День 9 / Среда
B169: Завтрак
A170: №49/ ТТК №27 | B170: Салат "Витаминный" (до 1 марта)/ Огурцы свежие порционно (после 1 марта) | C170: 100 | D170: 1.17 | E170: 5.1 | F170: 11.1 | G170: 95 | H170: 0 | I170: 0.03 | J170: 0.028 | K170: 24.9 | L170: 33.3 | M170: 24.55 | N170: 17.28 | O170: 0.938
A171: №302 | B171: Каша гречневая рассыпчатая | C171: 180 | D171: 8.23 | E171: 4.8 | F171: 39.6 | G171: 234.52 | H171: 0.04 | I171: 0.28 | J171: 0.13 | K171: 0 | L171: 15.4 | M171: 196 | N171: 118 | O171: 2.37
A172: № 290 | B172: Куриная грудка тушеная в сметанном соусе | C172: 50/50 | D172: 10.2 | E172: 12.36 | F172: 17.3 | G172: 221 | H172: 0.07 | I172: 0.08 | J172: 0 | K172: 0.036 | L172: 23.44 | M172: 140.14 | N172: 16.82 | O172: 1.12
B174: Хлеб пшеничный /ржано-пшеничный | C174: 40 | D174: 2.7 | E174: 0.5 | F174: 16.5 | G174: 95 | H174: 0 | I174: 0.028 | J174: 0.438 | K174: 0 | L174: 8.76 | M174: 32.22 | N174: 7.2 | O174: 0.7
A175: №685/2004 | B175: Чай с сахаром и яблоками | C175: 175/15/10 | D175: 0.2 | E175: 0.5 | F175: 15.7 | G175: 65.3 | H175: 0 | I175: 0 | J175: 0 | K175: 0 | L175: 0.45 | M175: 0 | N175: 0 | O175: 0.045
B176: Итого за завтрак: | D176: =SUM(D170:D175) -> 22.5 | E176: 23.26 | F176: 100.2 | G176: 710.82 | H176: 0.11 | I176: 0.418 | J176: 0.596 | K176: =K170+K171+K172+K173+K174+K175 -> 24.936 | L176: 81.35 | M176: 392.91 | N176: 159.3 | O176: 5.173
B177: Обед
A178: №52 | B178: Салат из отварной свеклы | C178: 100 | D178: 1.45 | E178: 6.75 | F178: 8.8 | G178: 101.8 | H178: 0 | I178: 0.01 | J178: 0.015 | K178: 5.09 | L178: 14.63 | M178: 16.05 | N178: 9.95 | O178: 0
A179: №108 | B179: Суп картофельный с клецками на мкб со сметаной | C179: 225/15/10 | D179: 6.59 | E179: 7.62 | F179: 24.45 | G179: 232 | H179: 0.02 | I179: 0.16 | J179: 0.12 | K179: 15.1 | L179: 25.66 | M179: 87.7 | N179: 28.38 | O179: 1.44
A180: №263 | B180: Рагу овощное с говядиной | C180: 220 | D180: 17.8 | E180: 16.4 | F180: 48.7 | G180: 413.6 | H180: 0.185 | I180: 0.13 | J180: 0.2 | K180: 23.29 | L180: 50.5 | M180: 206 | N180: 45.4 | O180: 3.05
B182: Хлеб пшеничный /ржано-пшеничный | C182: 60 | D182: 4.56 | E182: 0.48 | F182: 29.52 | G182: 142 | H182: 0 | I182: 0.028 | J182: 0.438 | K182: 0 | L182: 8.76 | M182: 32.22 | N182: 7.2 | O182: 0.7
A183: №342 | B183: Компот из свежих плодов | C183: 200 | D183: 0.17 | E183: 0.17 | F183: 19.18 | G183: 76.8 | H183: 0 | I183: 0.01 | J183: 0.01 | K183: 5.59 | L183: 7.1 | M183: 4.73 | N183: 8.17 | O183: 0
B184: Итого за обед: | D184: =SUM(D178:D183) -> 30.57 | E184: 31.42 | F184: 130.65 | G184: 966.2 | H184: 0.205 | I184: 0.338 | J184: 0.783 | K184: 49.07 | L184: 106.65 | M184: =M178+M179+M180+M181+M182+M183 -> 346.7 | N184: 99.1 | O184: 5.19
B185: Итого за 1 день: | D185: =D184+D176 -> 53.07 | E185: =E184+E176 -> 54.68 | F185: 230.85 | G185: 1677.02 | H185: 0.315 | I185: 0.756 | J185: 1.379 | K185: 74.006 | L185: 188 | M185: 739.61 | N185: 258.4 | O185: 10.363
B187: День 10 / Четверг
B188: Завтрак
A189: №338 | B189: Фрукт | C189: 100 | D189: 0.4 | E189: 0.4 | F189: 7.35 | G189: 46.6 | H189: 0 | I189: 0.03 | J189: 0.2 | K189: 10 | L189: 16 | M189: 11 | N189: 9 | O189: 2.2
A190: №142 | B190: Картофель тушеный | C190: 180 | D190: 7.2 | E190: 10.8 | F190: 30.1 | G190: 246.4 | H190: 2.16 | I190: 0.23 | J190: 0 | K190: 38.5 | L190: 33.91 | M190: 125.2 | N190: 50.6 | O190: 1.89
A193: №294 | B193: Котлета куриная с соусом | C193: 90/20 | D193: 10.99 | E193: 8.8 | F193: 10.86 | G193: 201 | H193: 0.012 | I193: 0.01 | J193: 0.13 | K193: 1.62 | L193: 19.87 | M193: 151 | N193: 18.85 | O193: 2.62
B194: Хлеб пшеничный /ржано-пшеничный | C194: 60 | D194: 4.56 | E194: 0.48 | F194: 29.52 | G194: 142 | H194: 0 | I194: 0.028 | J194: 0.438 | K194: 0 | L194: 8.76 | M194: 32.22 | N194: 7.2 | O194: 0.7
A195: №377 | B195: Чай с сахаром и курагой | C195: 200/15/7 | D195: 0.2 | E195: 1.5 | F195: 15.7 | G195: 65.3 | H195: 0 | I195: 0 | J195: 0 | K195: 0 | L195: 0.45 | M195: 0 | N195: 0 | O195: 0.045
B196: Итого за завтрак: | D196: =SUM(D189:D195) -> 23.35 | E196: 21.98 | F196: 93.53 | G196: 701.3 | H196: 2.172 | I196: 0.298 | J196: 0.768 | K196: 50.12 | L196: 78.99 | M196: 319.42 | N196: 85.65 | O196: 7.455
B197: Обед
A198: №15 | B198: Сыр | C198: 20 | D198: 4.22 | E198: 5.3 | F198: 0.7 | G198: 71.3 | H198: 0.6 | I198: 0 | J198: 0 | K198: 0.04 | L198: 305 | M198: 81 | N198: 0.75 | O198: 0.14
A199: №112 | B199: Суп с макаронными изделиями на мкб со сметаной | C199: 225/15/10 | D199: 9.9 | E199: 11.1 | F199: 27.44 | G199: 249.26 | H199: 0.01 | I199: 0.13 | J199: 0.09 | K199: 12.77 | L199: 20.65 | M199: 60.4 | N199: 25.67 | O199: 1.35
A200: №304 | B200: Рис отварной | C200: 180 | D200: 4.44 | E200: 8.04 | F200: 44.67 | G200: 264 | H200: 0.04 | I200: 0.05 | J200: 0.03 | K200: 0 | L200: 9.3 | M200: 100 | N200: 32.5 | O200: 0.67
A201: №229 | B201: Рыба припущенная с овощами | C201: 90/30 | D201: 9.33 | E201: 6.49 | F201: 10.2 | G201: 136.53 | H201: 0.04 | I201: 0.11 | J201: 0.12 | K201: 2.55 | L201: 52.95 | M201: 239.39 | N201: 56.27 | O201: 0.89
B203: Хлеб пшеничный /ржано-пшеничный | C203: 60 | D203: 4.56 | E203: 0.48 | F203: 29.52 | G203: 142 | H203: 0 | I203: 0.028 | J203: 0.438 | K203: 0 | L203: 8.76 | M203: 32.22 | N203: 7.2 | O203: 0.7
A204: №348 | B204: Компот из сухофруктов | C204: 200 | D204: 0.54 | E204: 0 | F204: 17.58 | G204: 70.53 | H204: 0.18 | I204: 0.005 | J204: 0.02 | K204: 0.03 | L204: 2.56 | M204: 3.56 | N204: 1.74 | O204: 0.1
B205: Итого за обед: | D205: =SUM(D198:D204) -> 32.99 | E205: 31.41 | F205: 130.11 | G205: 933.62 | H205: 0.87 | I205: 0.323 | J205: 0.698 | K205: 15.39 | L205: 399.22 | M205: 516.57 | N205: 124.13 | O205: 3.85
B206: Итого за 1 день: | D206: =D205+D196 -> 56.34 | E206: =E205+E196 -> 53.39 | F206: 223.64 | G206: 1634.92 | H206: 3.042 | I206: 0.621 | J206: 1.466 | K206: 65.51 | L206: 478.21 | M206: 835.99 | N206: 209.78 | O206: 11.305
B208: День 11 / Пятница
B209: Завтрак
A210: №67 | B210: Винегрет овощной | C210: 100 | D210: 2.44 | E210: 10.2 | F210: 16.7 | G210: 168.36 | H210: 0 | I210: 0.03 | J210: 2.3 | K210: 36 | L210: 42.56 | M210: 30.43 | N210: 16.53 | O210: 0.57
A211: №291 | B211: Плов из птицы | C211: 220 | D211: 16.2 | E211: 12.9 | F211: 42.8 | G211: 352.1 | H211: 1.7 | I211: 0.121 | J211: 0 | K211: 6.27 | L211: 24.39 | M211: 87.45 | N211: 45.21 | O211: 1.67
B213: Хлеб пшеничный /ржано-пшеничный | C213: 50 | D213: 2.7 | E213: 0.5 | F213: 16.5 | G213: 95 | H213: 0 | I213: 0.028 | J213: 0.438 | K213: 0 | L213: 8.76 | M213: 32.22 | N213: 7.2 | O213: 0.7
A215: №376 | B215: Чай с сахаром и лимоном | C215: 180/15/5 | D215: 0.045 | E215: 0.005 | F215: 15.12 | G215: 60.7 | H215: 20 | I215: 0.044 | J215: 0.12 | K215: 1.3 | L215: 125 | M215: 116 | N215: 21 | O215: 1.04
B216: Итого за завтрак: | D216: =SUM(D210:D215) -> 21.385 | E216: 23.605 | F216: 91.12 | G216: 676.16 | H216: 21.7 | I216: 0.223 | J216: 2.858 | K216: 43.57 | L216: 200.71 | M216: 266.1 | N216: 89.94 | O216: 3.98
B217: Обед
A218: №42 | B218: Салат картофельный с солеными огурцами | C218: 100 | D218: 1.6 | E218: 8.99 | F218: 8.5 | G218: 121.3 | H218: 1.02 | I218: 0.067 | J218: 0.7 | K218: 10.5 | L218: 22.3 | M218: 58.5 | N218: 18.4 | O218: 0.88
A219: №88 | B219: Щи из свежей капусты с картофелем на мкб со сметаной | C219: 225/15/10 | D219: 7.5 | E219: 8.5 | F219: 18.2 | G219: 187.7 | H219: 0.15 | I219: 0.45 | J219: 0.6 | K219: 10.25 | L219: 45.25 | M219: 78.74 | N219: 24.45 | O219: 1.15
A220: №306 | B220: Пюре гороховое | C220: 180 | D220: 6.14 | E220: 6.98 | F220: 45.4 | G220: 268.98 | H220: 0.04 | I220: 0.054 | J220: 0.011 | K220: 0 | L220: 155.8 | M220: 136.6 | N220: 52.85 | O220: 0.42
A221: №288 | B221: Курица тушеная с овощами | C221: 80/30 | D221: 14 | E221: 8.65 | F221: 17.6 | G221: 182 | H221: 0.646 | I221: 0.111 | J221: 0 | K221: 7.46 | L221: 19 | M221: 6.14 | N221: 24.12 | O221: 1.57
B223: Хлеб пшеничный /ржано-пшеничный | C223: 60 | D223: 3.8 | E223: 0.48 | F223: 22.42 | G223: 140.4 | H223: 0 | I223: 0.028 | J223: 0.438 | K223: 0 | L223: 8.76 | M223: 32.22 | N223: 7.2 | O223: 0.7
A224: №359 | B224: Кисель | C224: 200 | D224: 0 | E224: 0 | F224: 20.9 | G224: 83.9 | H224: 0 | I224: 0 | J224: 0 | K224: 0 | L224: 0.3 | M224: 0 | N224: 0 | O224: 0.45
B225: Итого за обед: | D225: =SUM(D218:D224) -> 33.04 | E225: =SUM(E218:E224) -> 33.6 | F225: =SUM(F218:F224) -> 133.02 | G225: =SUM(G218:G224) -> 984.28 | H225: =H218+H219+H220+H221+H222+H223+H224 -> 1.856 | I225: 0.71 | J225: 1.749 | K225: 28.21 | L225: 251.41 | M225: 312.2 | N225: 127.02 | O225: 5.17
B226: Итого за 1 день: | D226: =D225+D216 -> 54.425 | E226: =E225+E216 -> 57.205 | F226: 224.14 | G226: 1660.44 | H226: 23.556 | I226: 0.933 | J226: 4.607 | K226: 71.78 | L226: 452.12 | M226: 578.3 | N226: 216.96 | O226: 9.15
B228: День 12 / Суббота
B229: Завтрак
A230: №45/ №71 | B230: Салат из белокочанной капусты (до 1 марта)/ салат из припущенной моркови с яблоками (после 1 марта) | C230: 100 | D230: 1.33 | E230: 0.15 | F230: 3.2 | G230: 19.47 | H230: 0 | I230: 0.03 | J230: 2.3 | K230: 36 | L230: 42.5 | M230: 30.4 | N230: 16.5 | O230: 0.573
A231: №312 | B231: Картофельное пюре | C231: 180 | D231: 4.8 | E231: 8.52 | F231: 48.67 | G231: 290.56 | H231: 0.04 | I231: 0.05 | J231: 0.03 | K231: 0 | L231: 9.3 | M231: 100 | N231: 32.5 | O231: 0.67
A232: №268 | B232: Котлета из говядины с соусом | C232: 90/20 | D232: 12.7 | E232: 15 | F232: 14.3 | G232: 243 | H232: 1.36 | I232: 0.12 | J232: 0.14 | K232: 2.36 | L232: 26 | M232: 175.9 | N232: 22.8 | O232: 0.78
B233: Хлеб пшеничный /ржано-пшеничный | C233: 50 | D233: 2.7 | E233: 0.5 | F233: 16.5 | G233: 95 | H233: 0 | I233: 0.028 | J233: 0.438 | K233: 0 | L233: 8.76 | M233: 32.22 | N233: 7.2 | O233: 0.7
A234: №685/2004 | B234: Чай с сахаром и яблоками | C234: 175/15/10 | D234: 0.2 | E234: 0.5 | F234: 15.7 | G234: 65.3 | H234: 0 | I234: 0 | J234: 0 | K234: 0 | L234: 0.45 | M234: 0 | N234: 0 | O234: 0.045
B235: Итого за завтрак: | D235: =SUM(D230:D234) -> 21.73 | E235: 23.02 | F235: 98.37 | G235: 713.33 | H235: 1.4 | I235: 0.228 | J235: 2.908 | K235: 38.36 | L235: 87.01 | M235: 338.52 | N235: 79 | O235: 2.768
B236: Обед
A237: №71 | B237: Огурцы свежие с маслом | C237: 100 | D237: 0.73 | E237: 6.75 | F237: 3.13 | G237: 76.2 | H237: 0 | I237: 0.017 | J237: 0.04 | K237: 10 | L237: 23 | M237: 42 | N237: 14 | O237: 0.6
A238: №96 | B238: Рассольник Ленинградский на мкб со сметаной | C238: 225/15/10 | D238: 7.02 | E238: 8.2 | F238: 18.95 | G238: 191.3 | H238: 0.18 | I238: 0.12 | J238: 0.1 | K238: 10.68 | L238: 28.84 | M238: 105.4 | N238: 29.7 | O238: 1.38
A239: №259 | B239: Жаркое по-домашнему (из говядины) | C239: 220 | D239: 14.5 | E239: 14.3 | F239: 51.6 | G239: 393.1 | H239: 0.15 | I239: 0.18 | J239: 0.2 | K239: 21.67 | L239: 31.33 | M239: 225 | N239: 49.59 | O239: 1.92
B241: Хлеб пшеничный /ржано-пшеничный | C241: 60 | D241: 4.56 | E241: 0.48 | F241: 29.52 | G241: 142 | H241: 0 | I241: 0.028 | J241: 0.438 | K241: 0 | L241: 8.76 | M241: 32.22 | N241: 7.2 | O241: 0.7
A242: №49 | B242: Компот из изюма | C242: 200 | D242: 3.97 | E242: 2.1 | F242: 25.168 | G242: 145 | H242: 20 | I242: 0.044 | J242: 0.12 | K242: 1.3 | L242: 125 | M242: 116 | N242: 21 | O242: 1.04
... 5 more rows

Sheet меню 5-11 класс
A1: Согласовано: | K1: Утверждаю:
A2: Директор МБОУ "Алексеевская СОШ № 2" | K2: Председатель СПОСПК "Эдем"
A3: Алексеевского муниципального района
A4: __________________ Л.Р.Ягудина | K4: _____________Турнина А. А.
A7: Примерное двухнедельное меню рационов горячего питания для учащихся с диетическим питанием на 2023 учебный год.
A9: № рец. | B9: Приём пищи/ Наименование блюд | C9: Масса порций блюд, в гр. | D9: Пищевые вещества (г) | G9: Энергетическая ценность (ккал) | H9: Витамины (мг) | L9: Минеральные вещества (мг)
D10: Белки | E10: Жиры | F10: Углеводы | H10: А | I10: В1 | J10: Е | K10: С | L10: Ca | M10: P | N10: Mg | O10: Fe
B11: День 1 / Понедельник
B12: Завтрак
A13: №17/71 | B13: Салат из белокочанной капусты с огурцами (до 1 марта) /огурцы свежие порционно (после 1 марта) | C13: 50 | D13: 0.67 | E13: 0.08 | F13: 2.17 | G13: 12.05 | H13: 0.26 | I13: 0.03 | J13: 0.04 | K13: 5.25 | L13: 11.15 | M13: 29.4 | N13: 9.2 | O13: 0.44
A14: №203 | B14: Макароны отварные | C14: 180 | D14: 5.47 | E14: 0.7 | F14: 34.34 | G14: 165.54 | H14: 0.04 | I14: 0.011 | J14: 0.03 | K14: 0 | L14: 14.7 | M14: 59.5 | N14: 10.45 | O14: 1.06
A15: №268 | B15: Котлета из говядины с соусом | C15: 90/20 | D15: 13.06 | E15: 14.6 | F15: 19.66 | G15: 271.29 | H15: 1.36 | I15: 0.12 | J15: 0.14 | K15: 2.36 | L15: 26 | M15: 175.9 | N15: 22.8 | O15: 0.78
A16: №376 | B16: Чай без сахара | C16: 200 | D16: 0.2 | E16: 0.005 | F16: 0.04 | G16: 1 | H16: 0 | I16: 0 | J16: 0 | K16: 0 | L16: 0.45 | M16: 0 | N16: 0 | O16: 0.045
B17: Итого за завтрак: | D17: =SUM(D13:D16) -> 19.4 | E17: 15.385 | F17: 56.21 | G17: 449.88 | H17: 1.66 | I17: 0.161 | J17: 0.21 | K17: 7.61 | L17: 52.3 | M17: 264.8 | N17: 42.45 | O17: 2.325
B18: Обед
A19: №59 / 42 | B19: Салат из моркови с яблоком (до 1 марта) / Салат картофельный с солеными огурцами (после 1 марта) | C19: 50 | D19: 0.49 | E19: 4.65 | F19: 4.33 | G19: 61.13 | H19: 0 | I19: 0.048 | J19: 0.024 | K19: 15 | L19: 8.4 | M19: 15.6 | N19: 12 | O19: 0.58
A20: №82 | B20: Борщ с капустой и картофелем на мкб со сметаной | C20: 225/15/10 | D20: 7.5 | E20: 7.99 | F20: 23.09 | G20: 184 | H20: 0.27 | I20: 0.06 | J20: 0.28 | K20: 9.9 | L20: 44.87 | M20: 81.62 | N20: 26.53 | O20: 1.47
A21: №306 | B21: Пюре гороховое | C21: 180 | D21: 6.14 | E21: 6.98 | F21: 45.4 | G21: 268.98 | H21: 0.04 | I21: 0.054 | J21: 0.011 | K21: 0 | L21: 155.8 | M21: 136.6 | N21: 52.85 | O21: 0.42
A22: №301 | B22: Кнели куриные с соусом | C22: 90/20 | D22: 12.7 | E22: 10.53 | F22: 15.3 | G22: 206.77 | H22: 0.04 | I22: 0.1 | J22: 0.14 | K22: 5.87 | L22: 18.4 | M22: 50 | N22: 28.38 | O22: 1.48
A24: №348 | B24: Компот из сухофруктов без сахара | C24: 200 | D24: 0.54 | E24: 0 | F24: 2.61 | G24: 12.6 | H24: 0.18 | I24: 0.005 | J24: 0.02 | K24: 0.03 | L24: 2.56 | M24: 3.56 | N24: 1.74 | O24: 0.1
B25: Итого за обед: | D25: =SUM(D19:D24) -> 27.37 | E25: 30.15 | F25: 90.73 | G25: 733.48 | H25: 0.53 | I25: 0.267 | J25: 0.475 | K25: 30.8 | L25: 230.03 | M25: 287.38 | N25: 121.5 | O25: 4.05
B26: Итого за 1 день: | D26: =D25+D17 -> 46.77 | E26: 45.535 | F26: 146.94 | G26: 1183.36 | H26: 2.19 | I26: 0.428 | J26: 0.685 | K26: 38.41 | L26: 282.33 | M26: 552.18 | N26: 163.95 | O26: 6.375
B28: День 2 / Вторник
B29: Завтрак
A30: №52 | B30: Салат из отварной свеклы | C30: 50 | D30: 0.73 | E30: 3.38 | F30: 7.68 | G30: 63.9 | H30: 0 | I30: 0.025 | J30: 0.033 | K30: 8 | L30: 27.92 | M30: 36.3 | N30: 17.5 | O30: 1.05
A32: ТТК №50 | B32: Жаркое из птицы | C32: 230 | D32: 16.05 | E32: 18.09 | F32: 38.84 | G32: 392.37 | H32: 1.35 | I32: 0.215 | J32: 0 | K32: 28.98 | L32: 48.1 | M32: 90.97 | N32: 52.58 | O32: 2.42
A34: №376 | B34: Чай без сахара с лимоном | C34: 195/5 | D34: 0.045 | E34: 0.005 | F34: 0.15 | G34: 0.82 | H34: 20 | I34: 0.044 | J34: 0.12 | K34: 1.3 | L34: 125 | M34: 116 | N34: 21 | O34: 1.04
B35: Итого за завтрак: | D35: =SUM(D30:D34) -> 16.825 | E35: 21.475 | F35: 46.67 | G35: 457.09 | H35: 21.35 | I35: 0.284 | J35: 0.153 | K35: 38.28 | L35: 201.02 | M35: 243.27 | N35: 91.08 | O35: 4.51
B36: Обед
A37: №15 | B37: Сыр | C37: 15 | D37: 3.9 | E37: 3.97 | F37: 0.52 | G37: 54.75 | H37: 0.6 | I37: 0 | J37: 0 | K37: 0.04 | L37: 305 | M37: 81 | N37: 0.75 | O37: 0.14
A38: №88 | B38: Щи из свежей капусты с картофелем на мкб со сметаной | C38: 225/15/10 | D38: 8 | E38: 11.43 | F38: 18.2 | G38: 207.67 | H38: 0.15 | I38: 0.45 | J38: 0.6 | K38: 10.25 | L38: 45.25 | M38: 78.74 | N38: 24.45 | O38: 1.15
A39: №312 | B39: Картофельное пюре | C39: 180 | D39: 4.8 | E39: 8.52 | F39: 48.67 | G39: 310.6 | H39: 0.04 | I39: 0.05 | J39: 0.03 | K39: 0 | L39: 9.3 | M39: 100 | N39: 32.5 | O39: 0.67
A40: №234 | B40: Биточки рыбные с соусом | C40: 90/30 | D40: 8.55 | E40: 7.03 | F40: 18.35 | G40: 182.76 | H40: 0.04 | I40: 0.11 | J40: 0.132 | K40: 2.55 | L40: 52.95 | M40: 239.39 | N40: 56.27 | O40: 0.89
A42: №342 | B42: Компот без сахара из яблок | C42: 200 | D42: 0.2 | E42: 0.005 | F42: 1 | G42: 4.84 | H42: 0 | I42: 0 | J42: 0 | K42: 0 | L42: 0.45 | M42: 0 | N42: 0 | O42: 0.045
B43: Итого за обед: | D43: =SUM(D37:D42) -> 25.45 | E43: =SUM(E37:E42) -> 30.955 | F43: =SUM(F37:F42) -> 86.74 | G43: =SUM(G37:G42) -> 760.62 | H43: =SUM(H38:H42) -> 0.23 | I43: =SUM(I37:I42) -> 0.61 | J43: 0.762 | K43: 12.84 | L43: 412.95 | M43: 499.13 | N43: 113.97 | O43: 2.895
B44: Итого за 1 день: | D44: =D35+D43 -> 42.275 | E44: 52.43 | F44: 133.41 | G44: 1217.71 | H44: 21.58 | I44: 0.894 | J44: 0.915 | K44: 51.12 | L44: 613.97 | M44: 742.4 | N44: 205.05 | O44: 7.405
B46: День 3 / Среда
B47: Завтрак
A48: №338 | B48: Фрукт (любой кроме банана) | C48: 100 | D48: 0.4 | E48: 0.4 | F48: 7.35 | G48: 46.6 | H48: 0 | I48: 0.03 | J48: 0.2 | K48: 10 | L48: 16 | M48: 11 | N48: 9 | O48: 2.2
A49: №304 | B49: Рис отварной | C49: 180 | D49: 4.44 | E49: 8.04 | F49: 44.67 | G49: 264 | H49: 0.04 | I49: 0.05 | J49: 0.03 | K49: 0 | L49: 9.3 | M49: 100 | N49: 32.5 | O49: 0.67
A50: №294 | B50: Котлета из птицы с соусом | C50: 90/20 | D50: 11.9 | E50: 12.7 | F50: 6.59 | G50: 216.26 | H50: 0.012 | I50: 0.01 | J50: 0.13 | K50: 1.62 | L50: 19.87 | M50: 151 | N50: 18.85 | O50: 2.62
A52: №685/2004 | B52: Чай без сахара с яблоками | C52: 190/10 | D52: 0.2 | E52: 0.5 | F52: 0.73 | G52: 8.22 | H52: 0 | I52: 0 | J52: 0 | K52: 0 | L52: 0.45 | M52: 0 | N52: 0 | O52: 0.045
B53: Итого за завтрак: | D53: =SUM(D48:D52) -> 16.94 | E53: 21.64 | F53: 59.34 | G53: 535.08 | H53: 0.052 | I53: 0.09 | J53: 0.36 | K53: 11.62 | L53: 45.62 | M53: 262 | N53: 60.35 | O53: 5.535
B54: Обед
A55: №45 / 67 | B55: Салат из белокачанной капусты (до 1 марта)/ Винегрет овощной(после 1 марта) | C55: 50 | D55: 0.78 | E55: 2.75 | F55: 8.56 | G55: 62.11 | H55: 0 | I55: 0.018 | J55: 1.391 | K55: 21.603 | L55: 25.537 | M55: 18.26 | N55: 9.92 | O55: 0.344
A56: №96 | B56: Рассольник Ленинградский на мкб со сметаной | C56: 225/15/10 | D56: 7.02 | E56: 8.2 | F56: 18.95 | G56: 191.3 | H56: 0.18 | I56: 0.12 | J56: 0.1 | K56: 10.68 | L56: 28.84 | M56: 105.4 | N56: 29.7 | O56: 1.38
A57: №265 | B57: Плов с говядиной (крупа гречневая) | C57: 230 | D57: 19.32 | E57: 18.1 | F57: 54.72 | G57: 479.06 | H57: 0 | I57: 0.34 | J57: 0.24 | K57: 1.1 | L57: 26.6 | M57: 336 | N57: 159 | O57: 0.65
A58: №377 | B58: Чай без сахара с курагой | C58: 190/7 | D58: 0.2 | E58: 1.5 | F58: 0.73 | G58: 17.22 | H58: 0 | I58: 0 | J58: 0 | K58: 0 | L58: 0.45 | M58: 0 | N58: 0 | O58: 0.045
B59: Итого за обед: | D59: =SUM(D55:D58) -> 27.32 | E59: 30.55 | F59: 82.96 | G59: 749.69 | H59: 0.18 | I59: 0.478 | J59: 1.731 | K59: 33.383 | L59: 81.427 | M59: 459.66 | N59: 198.62 | O59: 2.419
B60: Итого за 1 день: | D60: =D53+D59 -> 44.26 | E60: 52.19 | F60: 142.3 | G60: 1284.77 | H60: 0.232 | I60: 0.568 | J60: 2.091 | K60: 45.003 | L60: 127.047 | M60: 721.66 | N60: 258.97 | O60: 7.954
B62: День 4 / Черверг
B63: Завтрак
A64: №338 | B64: Фрукт (любой кроме банана) | C64: 100 | D64: 1.69 | E64: 2.1 | F64: 13 | G64: 77.7 | H64: 0 | I64: 0.03 | J64: 0.2 | K64: 10 | L64: 16 | M64: 11 | N64: 9 | O64: 2.2
A65: №173 | B65: Каша геркулесовая на воде без сахара | C65: 200 | D65: 7.17 | E65: 13.9 | F65: 25 | G65: 254.3 | H65: 0.05 | I65: 0.23 | J65: 0.24 | K65: 1.3 | L65: 331.5 | M65: 327.1 | N65: 54.5 | O65: 2.11
A67: № 406 | B67: Кондитерское изделие | C67: 50/3шт | D67: 8.11 | E67: 8.95 | F67: 24.53 | G67: 192 | H67: 300 | I67: 0.07 | J67: 0.057 | K67: 0.678 | L67: 1.01 | M67: 0.001 | N67: 7.2 | O67: 0.7
A68: №376 | B68: Чай без сахара | C68: 200 | D68: 0.2 | E68: 0.005 | F68: 0.04 | G68: 1 | H68: 0 | I68: 0 | J68: 0 | K68: 0 | L68: 0.45 | M68: 0 | N68: 0 | O68: 0.045
B69: Итого за завтрак: | D69: =SUM(D64:D68) -> 17.17 | E69: 24.955 | F69: 62.57 | G69: 525 | H69: 300.05 | I69: 0.33 | J69: 0.497 | K69: 11.978 | L69: 348.96 | M69: 338.101 | N69: 70.7 | O69: 5.055
B70: Обед
A71: №66/ ТТК №27 | B71: Салат из моркови (до 1 марта)/ салат из припущенной моркови с яблоками (после 1 марта) | C71: 50 | D71: 0.6 | E71: 5.03 | F71: 7 | G71: 75.67 | H71: 0 | I71: 0.03 | J71: 0.2 | K71: 10 | L71: 16 | M71: 11 | N71: 9 | O71: 2.2
A72: №112 | B72: Суп с макаронными изделиями на мкб со сметаной | C72: 225/15/10 | D72: 8.36 | E72: 6.33 | F72: 27.44 | G72: 200 | H72: 0.01 | I72: 0.13 | J72: 0.09 | K72: 12.77 | L72: 20.65 | M72: 60.4 | N72: 25.67 | O72: 1.35
A73: № 289 | B73: Рагу из птицы | C73: 220 | D73: 16.66 | E73: 19.07 | F73: 46.6 | G73: 424.67 | H73: 1.98 | I73: 0.165 | J73: 0 | K73: 39.6 | L73: 56.1 | M73: 68.86 | N73: 44.44 | O73: 2.09
A75: №348 | B75: Компот из сухофруктов без сахара | C75: 200 | D75: 0.54 | E75: 0 | F75: 2.61 | G75: 12.6 | H75: 0.18 | I75: 0.005 | J75: 0.02 | K75: 0.03 | L75: 2.56 | M75: 3.56 | N75: 1.74 | O75: 0.1
B76: Итого за обед: | D76: =SUM(D71:D75) -> 26.16 | E76: 30.43 | F76: 83.65 | G76: 712.94 | H76: 2.17 | I76: 0.33 | J76: 0.31 | K76: 62.4 | L76: 95.31 | M76: 143.82 | N76: 80.85 | O76: 5.74
B77: Итого за 1 день: | D77: =D69+D76 -> 43.33 | E77: 55.385 | F77: 146.22 | G77: 1237.94 | H77: 302.22 | I77: 0.66 | J77: 0.807 | K77: 74.378 | L77: 444.27 | M77: 481.921 | N77: 151.55 | O77: 10.795
B79: День 5 / Пятница
B80: Завтрак
A81: №42 | B81: Салат картофельный с солеными огурцами | C81: 50 | D81: 0.8 | E81: 4.5 | F81: 4.25 | G81: 60.7 | H81: 1.02 | I81: 0.067 | J81: 0.7 | K81: 10.5 | L81: 22.3 | M81: 58.5 | N81: 18.4 | O81: 0.88
A83: №291 | B83: Плов из птицы | C83: 220 | D83: 16.96 | E83: 17.06 | F83: 47.04 | G83: 409.54 | H83: 1.7 | I83: 0.121 | J83: 0 | K83: 6.27 | L83: 24.39 | M83: 87.45 | N83: 45.21 | O83: 1.67
A85: №376 | B85: Чай без сахара с лимоном | C85: 195/5 | D85: 0.045 | E85: 0.005 | F85: 0.15 | G85: 0.82 | H85: 20 | I85: 0.044 | J85: 0.12 | K85: 1.3 | L85: 125 | M85: 116 | N85: 21 | O85: 1.04
B86: Итого за завтрак: | D86: =SUM(D81:D85) -> 17.805 | E86: 21.565 | F86: 51.44 | G86: 471.06 | H86: 22.72 | I86: 0.232 | J86: 0.82 | K86: 18.07 | L86: 171.69 | M86: 261.95 | N86: 84.61 | O86: 3.59
B87: Обед
A88: №49 / 71 | B88: Салат "Витаминный" (до 1 марта) / Огурцы свежие порционно(после 1 марта) | C88: 50 | D88: 0.44 | E88: 4.78 | F88: 6.06 | G88: 69.02 | H88: 0 | I88: 0.02 | J88: 0.02 | K88: 24.75 | L88: 34.9 | M88: 29.35 | N88: 18.3 | O88: 0.96
A89: №102 | B89: Суп картофельный с бобовыми(гороховый) на мкб | C89: 235/15 | D89: 7.99 | E89: 4.2 | F89: 13.69 | G89: 124.52 | H89: 0 | I89: 0.19 | J89: 0.09 | K89: 1.15 | L89: 25.23 | M89: 95.62 | N89: 30.56 | O89: 1.84
A90: №203 | B90: Макароны отварные | C90: 180 | D90: 5.47 | E90: 0.7 | F90: 34.34 | G90: 165.54 | H90: 0.04 | I90: 0.011 | J90: 0.03 | K90: 0 | L90: 14.7 | M90: 59.5 | N90: 10.45 | O90: 1.06
A91: №268 | B91: Котлета из говядины с соусом | C91: 90/20 | D91: 13.06 | E91: 14.6 | F91: 19.66 | G91: 271.29 | H91: 1.36 | I91: 0.12 | J91: 0.14 | K91: 2.36 | L91: 26 | M91: 175.9 | N91: 22.8 | O91: 0.78
A93: №359 | B93: Сок | C93: 200 | D93: 0 | E93: 0 | F93: 38 | G93: 76.8 | H93: 0.09 | I93: 0.15 | J93: 0 | K93: 0 | L93: 0.3 | M93: 0 | N93: 0 | O93: 0.45
B94: Итого за обед: | D94: =SUM(D88:D93) -> 26.96 | E94: 24.28 | F94: 111.75 | G94: 707.17 | H94: 1.49 | I94: 0.491 | J94: 0.28 | K94: 28.26 | L94: 101.13 | M94: 360.37 | N94: 82.11 | O94: 5.09
B95: Итого за 1 день: | D95: =D94+D86 -> 44.765 | E95: 45.845 | F95: 163.19 | G95: 1178.23 | H95: 24.21 | I95: 0.723 | J95: 1.1 | K95: 46.33 | L95: 272.82 | M95: 622.32 | N95: 166.72 | O95: 8.68
B97: День 6 / Суббота
B98: Завтрак
A99: № 20 | B99: Огурцы свежие с маслом | C99: 50 | D99: 2 | E99: 5.09 | F99: 2.06 | G99: 62.05 | H99: 1 | I99: 0 | J99: 0 | K99: 0.06 | L99: 508 | M99: 135 | N99: 1.25 | O99: 0.23
A100: №312 | B100: Картофельное пюре | C100: 180 | D100: 4.8 | E100: 8.52 | F100: 48.67 | G100: 310.6 | H100: 0.04 | I100: 0.05 | J100: 0.03 | K100: 0 | L100: 9.3 | M100: 100 | N100: 32.5 | O100: 0.67
A101: №229 | B101: Рыба припущенная с овощами | C101: 90/30 | D101: 9.33 | E101: 6.49 | F101: 10.2 | G101: 136.53 | H101: 0.04 | I101: 0.11 | J101: 0.12 | K101: 2.55 | L101: 52.95 | M101: 239.39 | N101: 56.27 | O101: 0.89
A104: №685/2004 | B104: Чай без сахара с яблоками | C104: 190/10 | D104: 0.2 | E104: 0.5 | F104: 0.73 | G104: 8.22 | H104: 0 | I104: 0 | J104: 0 | K104: 0 | L104: 0.45 | M104: 0 | N104: 0 | O104: 0.045
B105: Итого за завтрак: | D105: =SUM(D99:D104) -> 16.33 | E105: 20.6 | F105: 61.66 | G105: 517.4 | H105: 1.08 | I105: 0.16 | J105: 0.15 | K105: 2.61 | L105: 570.7 | M105: 474.39 | N105: 90.02 | O105: 1.835
B106: Обед
A107: №52 | B107: Салат из отварной свеклы | C107: 50 | D107: 0.73 | E107: 3.38 | F107: 4.4 | G107: 50.94 | H107: 0 | I107: 0.02 | J107: 0.03 | K107: 10.18 | L107: 24.38 | M107: 26.75 | N107: 16.58 | O107: 0
A108: №108 | B108: Суп картофельный с клецками на мкб со сметаной | C108: 225/15/10 | D108: 6.59 | E108: 7.62 | F108: 24.45 | G108: 232 | H108: 0.02 | I108: 0.16 | J108: 0.12 | K108: 15.1 | L108: 25.66 | M108: 87.7 | N108: 28.38 | O108: 1.44
A109: №304 | B109: Рис отварной | C109: 180 | D109: 4.44 | E109: 8.04 | F109: 44.67 | G109: 264 | H109: 0.04 | I109: 0.05 | J109: 0.03 | K109: 0 | L109: 9.3 | M109: 100 | N109: 32.5 | O109: 0.67
A110: №288 | B110: Курица тушеная с овощами | C110: 80/30 | D110: 14 | E110: 11.2 | F110: 17.6 | G110: 227.2 | H110: 0.646 | I110: 0.111 | J110: 0 | K110: 7.46 | L110: 19 | M110: 6.14 | N110: 24.12 | O110: 1.57
A112: №342 | B112: Компот из свежих плодов без сахара | C112: 200 | D112: 0.2 | E112: 0.005 | F112: 1 | G112: 4.84 | H112: 0 | I112: 0.01 | J112: 0.01 | K112: 5.59 | L112: 7.1 | M112: 4.73 | N112: 8.17 | O112: 0
B113: Итого за обед: | D113: =SUM(D107:D112) -> 25.96 | E113: =SUM(E107:E112) -> 30.245 | F113: 140.1 | G113: =SUM(G107:G112) -> 778.98 | H113: 0.706 | I113: 0.351 | J113: 0.19 | K113: 38.33 | L113: 85.44 | M113: 225.32 | N113: 109.75 | O113: 3.68
B114: Итого за 1 день: | D114: =D113+D105 -> 42.29 | E114: =E113+E105 -> 50.845 | F114: =F113+F105 -> 201.76 | G114: =G113+G105 -> 1296.38 | H114: =H113+H105 -> 1.786 | I114: =SUM(I107:I112) -> 0.351 | J114: =J113+J105 -> 0.34 | K114: 40.94 | L114: 656.14 | M114: 699.71 | N114: 199.77 | O114: 5.515
B116: День 7 / Понедельник
B117: Завтрак
A118: №15 | B118: Сыр | C118: 15 | D118: 3.9 | E118: 3.97 | F118: 0.52 | G118: 54.75 | H118: 0.6 | I118: 0 | J118: 0 | K118: 0.04 | L118: 305 | M118: 81 | N118: 0.75 | O118: 0.14
A120: №173 | B120: Каша "Дружба" на воде без сахара | C120: 200 | D120: 8.6 | E120: 8.4 | F120: 26.1 | G120: 214.4 | H120: 0.05 | I120: 0.23 | J120: 0.24 | K120: 1.3 | L120: 331.5 | M120: 327.1 | N120: 54.5 | O120: 2.11
A121: №418 | B121: Кондитерское изделие (печенье) | C121: 50/3шт | D121: 5.2 | E121: 7.9 | F121: 20.31 | G121: 173.14 | H121: 0.01 | I121: 0.06 | J121: 0.04 | K121: 0.25 | L121: 22.01 | M121: 41.55 | N121: 8.55 | O121: 0.75
A123: №376 | B123: Чай без сахара | C123: 200 | D123: 0.2 | E123: 0.005 | F123: 0.04 | G123: 1 | H123: 0 | I123: 0 | J123: 0 | K123: 0 | L123: 0.45 | M123: 0 | N123: 0 | O123: 0.045
B124: Итого за завтрак: | D124: =SUM(D118:D123) -> 17.9 | E124: 20.275 | F124: 46.97 | G124: 443.29 | H124: 0.66 | I124: 0.29 | J124: 0.28 | K124: 1.59 | L124: 658.96 | M124: 449.65 | N124: 63.8 | O124: 3.045
B125: Обед
A126: №45 /67 | B126: Салат из белокочанной капусты (до 1 марта)/Салат из отварной свеклы с зеленым горошком (после 1 марта) | C126: 50 | D126: 0.84 | E126: 4.73 | F126: 4.67 | G126: 64.5 | H126: 0 | I126: 0.024 | J126: 1.854 | K126: 28.8 | L126: 34.05 | M126: 24.35 | N126: 13.22 | O126: 0.458
A127: №101 | B127: Суп картофельный с крупой (пшённый) на мкб со сметаной | C127: 225/15/10 | D127: 9.38 | E127: 9.5 | F127: 22.79 | G127: 223 | H127: 0 | I127: 0.15 | J127: 0.44 | K127: 10.5 | L127: 109.6 | M127: 112.8 | N127: 45.74 | O127: 1.9
A128: №259 | B128: Жаркое по-домашнему (из говядины) | C128: 220 | D128: 14.62 | E128: 15.98 | F128: 53.1 | G128: 434.8 | H128: 0.15 | I128: 0.18 | J128: 0.2 | K128: 21.67 | L128: 31.33 | M128: 225 | N128: 49.59 | O128: 1.92
A130: №348 | B130: Компот из сухофруктов без сахара | C130: 200 | D130: 0.54 | E130: 0 | F130: 2.61 | G130: 12.6 | H130: 0.18 | I130: 0.005 | J130: 0.02 | K130: 0.03 | L130: 2.56 | M130: 3.56 | N130: 1.74 | O130: 0.1
B131: Итого за обед: | D131: =SUM(D126:D130) -> 25.38 | E131: 30.21 | F131: 83.17 | G131: 734.9 | H131: 0.33 | I131: 0.359 | J131: 2.514 | K131: 61 | L131: 177.54 | M131: 365.71 | N131: =SUM(N126:N128) -> 108.55 | O131: =SUM(O126:O130) -> 4.378
B132: Итого за 1 день: | D132: =D124+D131 -> 43.28 | E132: 50.485 | F132: 130.14 | G132: 1178.19 | H132: 0.99 | I132: 0.649 | J132: 2.794 | K132: 62.59 | L132: 836.5 | M132: 815.36 | N132: 172.35 | O132: 7.423
B134: День 8 / Вторник
B135: Завтрак
A136: №338 | B136: Фрукт (любой кроме банана) | C136: 100 | D136: 0.4 | E136: 0.4 | F136: 7.35 | G136: 46.6 | H136: 0 | I136: 0.03 | J136: 0.2 | K136: 10 | L136: 16 | M136: 11 | N136: 9 | O136: 2.2
A137: №287 | B137: Плов из говядины | C137: 200 | D137: 18.05 | E137: 21.7 | F137: 40.8 | G137: 430.9 | H137: 0 | I137: 0.1 | J137: 0.15 | K137: 56 | L137: 76.24 | M137: 189 | N137: 51.4 | O137: 2.59
A140: №376 | B140: Чай без сахара с лимоном | C140: 195/5 | D140: 0.045 | E140: 0.005 | F140: 0.15 | G140: 0.82 | H140: 20 | I140: 0.044 | J140: 0.12 | K140: 1.3 | L140: 125 | M140: 116 | N140: 21 | O140: 1.04
B141: Итого за завтрак: | D141: =SUM(D136:D140) -> 18.495 | E141: 22.105 | F141: 48.3 | G141: 478.32 | H141: 20 | I141: 0.174 | J141: 0.47 | K141: 67.3 | L141: 217.24 | M141: 316 | N141: 81.4 | O141: 5.83
B142: Обед
A143: № 59 / 71 | B143: Салат из моркови (до 1 марта) /Салат из припущенной моркови с изюмом (после 1 марта) | C143: 50 | D143: 0.61 | E143: 5.6 | F143: 7 | G143: 80.84 | H143: 0 | I143: 0.05 | J143: 0.07 | K143: 4.8 | L143: 49.3 | M143: 53.1 | N143: 36.7 | O143: 0.68
A144: №82 | B144: Борщ с капустой и картофелем на мкб со сметаной | C144: 225/15/10 | D144: 7.5 | E144: 7.99 | F144: 23.09 | G144: 184 | H144: 0.27 | I144: 0.06 | J144: 0.28 | K144: 9.9 | L144: 44.87 | M144: 81.62 | N144: 26.53 | O144: 1.47
A145: №203 | B145: Макароны отварные | C145: 180 | D145: 5.47 | E145: 0.7 | F145: 34.34 | G145: 165.54 | H145: 0.04 | I145: 0.011 | J145: 0.03 | K145: 0 | L145: 14.7 | M145: 59.5 | N145: 10.45 | O145: 1.06
A146: №301 | B146: Кнели куриные с соусом | C146: 90/20 | D146: 12.7 | E146: 10.53 | F146: 15.3 | G146: 206.77 | H146: 0.04 | I146: 0.1 | J146: 0.14 | K146: 5.87 | L146: 18.4 | M146: 50 | N146: 28.38 | O146: 1.48
A148: №359 | B148: Сок | C148: 200 | D148: 0 | E148: 0 | F148: 38 | G148: 76.8 | H148: 0.09 | I148: 0 | J148: 0 | K148: 0 | L148: 0.3 | M148: 0 | N148: 0 | O148: 0.45
B149: Итого за обед: | D149: =SUM(D143:D148) -> 26.28 | E149: 24.82 | F149: 117.73 | G149: 713.95 | H149: 0.44 | I149: 0.221 | J149: 0.52 | K149: 20.57 | L149: 127.57 | M149: 244.22 | N149: 102.06 | O149: 5.14
B150: Итого за 1 день: | D150: =D141+D149 -> 44.775 | E150: 46.925 | F150: 166.03 | G150: 1192.27 | H150: 20.44 | I150: 0.395 | J150: 0.99 | K150: 87.87 | L150: 344.81 | M150: 560.22 | N150: 183.46 | O150: 10.97
B152: День 9 / Среда
B153: Завтрак
A154: №49/ ТТК №27 | B154: Салат "Витаминный" (до 1 марта)/ Огурцы свежие порционно (после 1 марта) | C154: 50 | D154: 0.59 | E154: 3.72 | F154: 5.55 | G154: 58.04 | H154: 0 | I154: 0.03 | J154: 0.028 | K154: 24.9 | L154: 33.3 | M154: 24.55 | N154: 17.28 | O154: 0.938
A155: №302 | B155: Каша гречневая рассыпчатая | C155: 180 | D155: 8.23 | E155: 4.8 | F155: 39.6 | G155: 234.52 | H155: 0.04 | I155: 0.28 | J155: 0.13 | K155: 0 | L155: 15.4 | M155: 196 | N155: 118 | O155: 2.37
A156: № 290 | B156: Куриная грудка тушеная | C156: 50/50 | D156: 10.2 | E156: 12.36 | F156: 17.3 | G156: 221 | H156: 0.07 | I156: 0.08 | J156: 0 | K156: 0.036 | L156: 23.44 | M156: 140.14 | N156: 16.82 | O156: 1.12
A158: №685/2004 | B158: Чай без сахара с яблоками | C158: 190/10 | D158: 0.2 | E158: 0.5 | F158: 0.73 | G158: 8.22 | H158: 0 | I158: 0 | J158: 0 | K158: 0 | L158: 0.45 | M158: 0 | N158: 0 | O158: 0.045
B159: Итого за завтрак: | D159: =SUM(D154:D158) -> 19.22 | E159: 21.38 | F159: 63.18 | G159: 521.78 | H159: 0.11 | I159: 0.39 | J159: 0.158 | K159: 24.936 | L159: 72.59 | M159: 360.69 | N159: 152.1 | O159: 4.473
B160: Обед
A161: №52 | B161: Салат из отварной свеклы | C161: 50 | D161: 0.73 | E161: 3.38 | F161: 4.4 | G161: 50.94 | H161: 0 | I161: 0.02 | J161: 0.03 | K161: 10.18 | L161: 24.38 | M161: 26.75 | N161: 16.58 | O161: 0
A162: №108 | B162: Суп картофельный с клецками на мкб со сметаной | C162: 225/15/10 | D162: 6.59 | E162: 7.62 | F162: 24.45 | G162: 232 | H162: 0.02 | I162: 0.16 | J162: 0.12 | K162: 15.1 | L162: 25.66 | M162: 87.7 | N162: 28.38 | O162: 1.44
A163: №263 | B163: Рагу овощное с говядиной | C163: 220 | D163: 17.98 | E163: 19.03 | F163: 50.05 | G163: 443.39 | H163: 0.185 | I163: 0.13 | J163: 0.2 | K163: 23.29 | L163: 50.5 | M163: 206 | N163: 45.4 | O163: 3.05
A165: №342 | B165: Компот из свежих плодов без сахара | C165: 200 | D165: 0.2 | E165: 0.005 | F165: 1 | G165: 4.84 | H165: 0 | I165: 0.01 | J165: 0.01 | K165: 5.59 | L165: 7.1 | M165: 4.73 | N165: 8.17 | O165: 0
B166: Итого за обед: | D166: =SUM(D161:D165) -> 25.5 | E166: 30.035 | F166: 79.9 | G166: 731.17 | H166: 0.205 | I166: 0.32 | J166: 0.36 | K166: 54.16 | L166: 107.64 | M166: 325.18 | N166: 98.53 | O166: 4.49
B167: Итого за 1 день: | D167: =D166+D159 -> 44.72 | E167: 51.415 | F167: 143.08 | G167: 1252.95 | H167: 0.315 | I167: 0.71 | J167: 0.518 | K167: 79.096 | L167: 180.23 | M167: 685.87 | N167: 250.63 | O167: 8.963
B169: День 10 / Четверг
B170: Завтрак
A171: №338 | B171: Фрукт (любой кроме банана) | C171: 100 | D171: 0.4 | E171: 0.4 | F171: 7.35 | G171: 46.6 | H171: 0 | I171: 0.03 | J171: 0.2 | K171: 10 | L171: 16 | M171: 11 | N171: 9 | O171: 2.2
A172: №142 | B172: Картофель тушеный | C172: 180 | D172: 5.38 | E172: 7.15 | F172: 25.6 | G172: 188.27 | H172: 2.16 | I172: 0.23 | J172: 0 | K172: 38.5 | L172: 33.91 | M172: 125.2 | N172: 50.6 | O172: 1.89
A175: №268 | B175: Котлета из говядины | C175: 90 | D175: 13.06 | E175: 14.6 | F175: 19.66 | G175: 271.29 | H175: 1.36 | I175: 0.12 | J175: 0.14 | K175: 2.36 | L175: 26 | M175: 175.9 | N175: 22.8 | O175: 0.78
A176: №377 | B176: Чай без сахара с курагой | C176: 190/7 | D176: 0.2 | E176: 1.5 | F176: 0.73 | G176: 17.22 | H176: 0 | I176: 0 | J176: 0 | K176: 0 | L176: 0.45 | M176: 0 | N176: 0 | O176: 0.045
B177: Итого за завтрак: | D177: =SUM(D171:D176) -> 19.04 | E177: 23.65 | F177: 53.34 | G177: 523.38 | H177: 3.52 | I177: 0.38 | J177: 0.34 | K177: 50.86 | L177: 76.36 | M177: 312.1 | N177: 82.4 | O177: 4.915
B178: Обед
A179: №15 | B179: Сыр | C179: 20 | D179: 4.22 | E179: 5.3 | F179: 0.7 | G179: 71.3 | H179: 0.6 | I179: 0 | J179: 0 | K179: 0.04 | L179: 305 | M179: 81 | N179: 0.75 | O179: 0.14
A180: №112 | B180: Суп с макаронными изделиями на мкб со сметаной | C180: 225/15/10 | D180: 9.9 | E180: 11.1 | F180: 27.44 | G180: 249.26 | H180: 0.01 | I180: 0.13 | J180: 0.09 | K180: 12.77 | L180: 20.65 | M180: 60.4 | N180: 25.67 | O180: 1.35
A181: №304 | B181: Рис отварной | C181: 180 | D181: 4.44 | E181: 8.04 | F181: 44.67 | G181: 264 | H181: 0.04 | I181: 0.05 | J181: 0.03 | K181: 0 | L181: 9.3 | M181: 100 | N181: 32.5 | O181: 0.67
A182: №229 | B182: Рыба припущенная с овощами | C182: 90/30 | D182: 9.33 | E182: 6.49 | F182: 10.2 | G182: 136.53 | H182: 0.04 | I182: 0.11 | J182: 0.12 | K182: 2.55 | L182: 52.95 | M182: 239.39 | N182: 56.27 | O182: 0.89
A184: №348 | B184: Компот из сухофруктов без сахара | C184: 200 | D184: 0.54 | E184: 0 | F184: 2.61 | G184: 12.6 | H184: 0.18 | I184: 0.005 | J184: 0.02 | K184: 0.03 | L184: 2.56 | M184: 3.56 | N184: 1.74 | O184: 0.1
B185: Итого за обед: | D185: =SUM(D179:D184) -> 28.43 | E185: 30.93 | F185: 85.62 | G185: 733.69 | H185: 0.87 | I185: 0.295 | J185: 0.26 | K185: 15.39 | L185: 390.46 | M185: 484.35 | N185: 116.93 | O185: 3.15
B186: Итого за 1 день: | D186: =D185+D177 -> 47.47 | E186: 54.58 | F186: 138.96 | G186: 1257.07 | H186: 4.39 | I186: 0.675 | J186: 0.6 | K186: 66.25 | L186: 466.82 | M186: 796.45 | N186: 199.33 | O186: 8.065
B188: День 11 / Пятница
B189: Завтрак
A190: №67 | B190: Винегрет овощной | C190: 50 | D190: 1 | E190: 5.8 | F190: 6.6 | G190: 86.1 | H190: 0 | I190: 0.03 | J190: 2.3 | K190: 36 | L190: 42.56 | M190: 30.43 | N190: 16.53 | O190: 0.57
A191: №291 | B191: Плов из птицы | C191: 220 | D191: 16.96 | E191: 17.06 | F191: 47.04 | G191: 409.54 | H191: 1.7 | I191: 0.121 | J191: 0 | K191: 6.27 | L191: 24.39 | M191: 87.45 | N191: 45.21 | O191: 1.67
A194: №376 | B194: Чай без сахара с лимоном | C194: 195/5 | D194: 0.045 | E194: 0.005 | F194: 0.15 | G194: 0.82 | H194: 20 | I194: 0.044 | J194: 0.12 | K194: 1.3 | L194: 125 | M194: 116 | N194: 21 | O194: 1.04
B195: Итого за завтрак: | D195: =SUM(D190:D194) -> 18.005 | E195: 22.865 | F195: 53.79 | G195: 496.46 | H195: 21.7 | I195: 0.195 | J195: 2.42 | K195: 43.57 | L195: 191.95 | M195: 233.88 | N195: 82.74 | O195: 3.28
B196: Обед
A197: №20 | B197: Огурцы свежие с маслом | C197: 50 | D197: 0.8 | E197: 4.5 | F197: 4.25 | G197: 60.65 | H197: 1.02 | I197: 0.067 | J197: 0.7 | K197: 10.5 | L197: 22.3 | M197: 58.5 | N197: 18.4 | O197: 0.88
A198: №88 | B198: Щи из свежей капусты с картофелем на мкб со сметаной | C198: 225/15/10 | D198: 7.5 | E198: 8.5 | F198: 18.2 | G198: 187.7 | H198: 0.15 | I198: 0.45 | J198: 0.6 | K198: 10.25 | L198: 45.25 | M198: 78.74 | N198: 24.45 | O198: 1.15
A199: №171 | B199: Каша пшеничная рассыпчатая | C199: 180 | D199: 6.97 | E199: 5.95 | F199: 45.48 | G199: 263.35 | H199: 0.04 | I199: 0.054 | J199: 0.011 | K199: 0 | L199: 155.8 | M199: 136.6 | N199: 52.85 | O199: 0.42
A200: №288 | B200: Курица тушеная с овощами | C200: 80/30 | D200: 14 | E200: 11.2 | F200: 17.6 | G200: 227.2 | H200: 0.646 | I200: 0.111 | J200: 0 | K200: 7.46 | L200: 19 | M200: 6.14 | N200: 24.12 | O200: 1.57
A202: №359 | B202: Сок | C202: 200 | D202: 0 | E202: 0 | F202: 20.9 | G202: 83.9 | H202: 0 | I202: 0 | J202: 0 | K202: 0 | L202: 0.3 | M202: 0 | N202: 0 | O202: 0.45
B203: Итого за обед: | D203: =SUM(D197:D202) -> 29.27 | E203: 30.15 | F203: 106.43 | G203: 822.8 | H203: 1.856 | I203: 0.682 | J203: 1.311 | K203: 28.21 | L203: 242.65 | M203: 279.98 | N203: 119.82 | O203: 4.47
B204: Итого за 1 день: | D204: =D203+D195 -> 47.275 | E204: 53.015 | F204: 160.22 | G204: 1319.26 | H204: 23.556 | I204: 0.877 | J204: 3.731 | K204: 71.78 | L204: 434.6 | M204: 513.86 | N204: 202.56 | O204: 7.75
B206: День 12 / Суббота
B207: Завтрак
A208: №45/ №71 | B208: Салат из белокочанной капусты (до 1 марта)/ салат из припущенной моркови с яблоками (после 1 марта) | C208: 50 | D208: 0.77 | E208: 0.08 | F208: 2.5 | G208: 13.8 | H208: 0 | I208: 0.03 | J208: 2.3 | K208: 36 | L208: 42.5 | M208: 30.4 | N208: 16.5 | O208: 0.573
A209: №312 | B209: Картофельное пюре | C209: 180 | D209: 4.8 | E209: 8.52 | F209: 48.67 | G209: 310.6 | H209: 0.04 | I209: 0.05 | J209: 0.03 | K209: 0 | L209: 9.3 | M209: 100 | N209: 32.5 | O209: 0.67
A210: №294 | B210: Котлета из птицы с соусом | C210: 90/20 | D210: 11.9 | E210: 12.7 | F210: 6.59 | G210: 216.26 | H210: 0.012 | I210: 0.01 | J210: 0.13 | K210: 1.62 | L210: 19.87 | M210: 151 | N210: 18.85 | O210: 2.62
A211: №685/2004 | B211: Чай без сахара с яблоками | C211: 190/10 | D211: 0.2 | E211: 0.5 | F211: 0.73 | G211: 8.22 | H211: 0 | I211: 0 | J211: 0 | K211: 0 | L211: 0.45 | M211: 0 | N211: 0 | O211: 0.045
B212: Итого за завтрак: | D212: =SUM(D208:D211) -> 17.67 | E212: 23.02 | F212: 92.98 | G212: 697.92 | H212: =SUM(H208:H211) -> 0.052 | I212: 0.09 | J212: 2.46 | K212: 37.62 | L212: 72.12 | M212: 281.4 | N212: 67.85 | O212: 3.908
B213: Обед
A214: №67 | B214: Салат из свеклы с зеленым горошком | C214: 50 | D214: 0.37 | E214: 4 | F214: 1.57 | G214: 43.76 | H214: 0 | I214: 0.017 | J214: 0.04 | K214: 10 | L214: 23 | M214: 42 | N214: 14 | O214: 0.6
A215: №96 | B215: Рассольник Ленинградский на мкб со сметаной | C215: 225/15/10 | D215: 7.02 | E215: 8.2 | F215: 18.95 | G215: 191.3 | H215: 0.18 | I215: 0.12 | J215: 0.1 | K215: 10.68 | L215: 28.84 | M215: 105.4 | N215: 29.7 | O215: 1.38
A216: №259 | B216: Жаркое по-домашнему (из говядины) | C216: 220 | D216: 14.62 | E216: 15.98 | F216: 53.1 | G216: 434.8 | H216: 0.15 | I216: 0.18 | J216: 0.2 | K216: 21.67 | L216: 31.33 | M216: 225 | N216: 49.59 | O216: 1.92
A218: №49 | B218: Компот из изюма без сахара | C218: 200 | D218: 3.97 | E218: 2.1 | F218: 10.19 | G218: 75.54 | H218: 20 | I218: 0.044 | J218: 0.12 | K218: 1.3 | L218: 125 | M218: 116 | N218: 21 | O218: 1.04
B219: Итого за обед: | D219: =SUM(D214:D218) -> 25.98 | E219: 30.28 | F219: 83.81 | G219: 745.4 | H219: 20.33 | I219: 0.361 | J219: 0.46 | K219: 43.65 | L219: 208.17 | M219: 488.4 | N219: 114.29 | O219: 4.94
B220: Итого за 1 день: | D220: =D219+D212 -> 43.65 | E220: 53.3 | F220: 176.79 | G220: 1443.32 | H220: 20.382 | I220: 0.451 | J220: 2.92 | K220: 81.27 | L220: 280.29 | M220: 769.8 | N220: 182.14 | O220: 8.848
B222: Итого за 12 дней за завтрак и обед: | D222: =D220+D204+D186+D167+D150+D132+D114+D95+D77+D60+D44+D26 -> 534.86 | E222: =E220+E204+E186+E167+E150+E132+E114+E95+E77+E60+E44+E26 -> 611.95 | F222: =F220+F204+F186+F167+F150+F132+F114+F95+F77+F60+F44+F26 -> 1849.04 | G222: =G220+G204+G186+G167+G150+G132+G114+G95+G77+G60+G44+G26 -> 15041.45 | H222: =H17+H25+H35+H43+H53+H59+H69+H76+H86+H94+H105+H113+H124+H131+H141+H149+H166+H159+H177+H185+H195+H203+H212+H219 -> 422.291 | I222: 7.541 | J222: 17.491 | K222: 745.037 | L222: 4939.827 | M222: 7961.751 | N222: 2336.48 | O222: 98.743
B223: Усреднённые данные на 1 день | D223: =D222/12 -> 44.57166667 | E223: =E222/12 -> 50.99583333 | F223: 154.0866667 | G223: =G222/12 -> 1253.454167 | H223: 35.19091667 | I223: 0.6284166667 | J223: 1.457583333 | K223: 62.08641667 | L223: 411.65225 | M223: 663.47925 | N223: 194.7066667 | O223: 8.228583333
